Workbook

Sheet 25 Year Non-Renewal Plan
A1: 25 Year Non-Renewal Plan
A4: Note: these projects are listed for illustrative purposes only. Further analysis required for defining projects to address key issues.
A5: *includes construction and future renewal
A6: INVENTORY | F6: VALUATION
A7: Key Issues (Item) | B7: =#REF! ->  | C7: Preferred Option | D7: Preferred Option (Description) | E7: Capital (y/n) | F7: Project Cost | G7: Project Year | H7: =#REF! ->  | I7: Replacement Year 1 | J7: Replacement Year 2 | K7: Replacement Year 3 | L7: Replacement Year 4 | M7: Replacement Year 5 | N7: Replacement Year 6 | O7: 2019 | P7: 2020 | Q7: 2021 | R7: 2022 | S7: 2023 | T7: 2024 | U7: 2025 | V7: 2026 | W7: 2027 | X7: 2028 | Y7: 2029 | Z7: 2030 | AA7: 2031 | AB7: 2032 | AC7: 2033 | AD7: 2034 | AE7: 2035 | AF7: 2036 | AG7: 2037 | AH7: 2038 | AI7: 2039 | AJ7: 2040 | AK7: 2041 | AL7: 2042 | AM7: 2043 | AN7: 25 Year Total | AO7: 25 Annualized | AP7: Lifecycle Annualized
B8: Recreation | C8: New Benches | E8: y | F8: 20000 | G8: 2020 | H8: 10 | I8: =G8+$H8 -> 2030 | J8: =I8+$H8 -> 2040 | K8: =J8+$H8 -> 2050 | L8: =K8+$H8 -> 2060 | M8: =L8+$H8 -> 2070 | N8: =M8+$H8 -> 2080 | O8: =IF(AND($E8="Y",OR($G8=O$7,$I8=O$7,$J8=O$7,$K8=O$7,$L8=O$7,$M8=O$7,$N8=O$7)),$F8,IF(G8=O$7,$F8,"")) ->  | P8: =IF(AND($E8="Y",OR($G8=P$7,$I8=P$7,$J8=P$7,$K8=P$7,$L8=P$7,$M8=P$7,$N8=P$7)),$F8,IF(H8=P$7,$F8,"")) -> 20000 | Q8: =IF(AND($E8="Y",OR($G8=Q$7,$I8=Q$7,$J8=Q$7,$K8=Q$7,$L8=Q$7,$M8=Q$7,$N8=Q$7)),$F8,IF(I8=Q$7,$F8,"")) ->  | R8: =IF(AND($E8="Y",OR($G8=R$7,$I8=R$7,$J8=R$7,$K8=R$7,$L8=R$7,$M8=R$7,$N8=R$7)),$F8,IF(J8=R$7,$F8,"")) ->  | S8: =IF(AND($E8="Y",OR($G8=S$7,$I8=S$7,$J8=S$7,$K8=S$7,$L8=S$7,$M8=S$7,$N8=S$7)),$F8,IF(K8=S$7,$F8,"")) ->  | T8: =IF(AND($E8="Y",OR($G8=T$7,$I8=T$7,$J8=T$7,$K8=T$7,$L8=T$7,$M8=T$7,$N8=T$7)),$F8,IF(L8=T$7,$F8,"")) ->  | U8: =IF(AND($E8="Y",OR($G8=U$7,$I8=U$7,$J8=U$7,$K8=U$7,$L8=U$7,$M8=U$7,$N8=U$7)),$F8,IF(M8=U$7,$F8,"")) ->  | V8: =IF(AND($E8="Y",OR($G8=V$7,$I8=V$7,$J8=V$7,$K8=V$7,$L8=V$7,$M8=V$7,$N8=V$7)),$F8,IF(N8=V$7,$F8,"")) ->  | W8: =IF(AND($E8="Y",OR($G8=W$7,$I8=W$7,$J8=W$7,$K8=W$7,$L8=W$7,$M8=W$7,$N8=W$7)),$F8,IF(O8=W$7,$F8,"")) ->  | X8: =IF(AND($E8="Y",OR($G8=X$7,$I8=X$7,$J8=X$7,$K8=X$7,$L8=X$7,$M8=X$7,$N8=X$7)),$F8,IF(P8=X$7,$F8,"")) ->  | Y8: =IF(AND($E8="Y",OR($G8=XFD$7,$I8=XFD$7,$J8=XFD$7,$K8=XFD$7,$L8=XFD$7,$M8=XFD$7,$N8=XFD$7)),$F8,IF(Q8=XFD$7,$F8,"")) -> 20000 | Z8: =IF(AND($E8="Y",OR($G8=XFD$7,$I8=XFD$7,$J8=XFD$7,$K8=XFD$7,$L8=XFD$7,$M8=XFD$7,$N8=XFD$7)),$F8,IF(R8=XFD$7,$F8,"")) -> 20000 | AA8: =IF(AND($E8="Y",OR($G8=AA$7,$I8=AA$7,$J8=AA$7,$K8=AA$7,$L8=AA$7,$M8=AA$7,$N8=AA$7)),$F8,IF(S8=AA$7,$F8,"")) ->  | AB8: =IF(AND($E8="Y",OR($G8=AB$7,$I8=AB$7,$J8=AB$7,$K8=AB$7,$L8=AB$7,$M8=AB$7,$N8=AB$7)),$F8,IF(T8=AB$7,$F8,"")) ->  | AC8: =IF(AND($E8="Y",OR($G8=AC$7,$I8=AC$7,$J8=AC$7,$K8=AC$7,$L8=AC$7,$M8=AC$7,$N8=AC$7)),$F8,IF(U8=AC$7,$F8,"")) ->  | AD8: =IF(AND($E8="Y",OR($G8=AD$7,$I8=AD$7,$J8=AD$7,$K8=AD$7,$L8=AD$7,$M8=AD$7,$N8=AD$7)),$F8,IF(V8=AD$7,$F8,"")) ->  | AE8: =IF(AND($E8="Y",OR($G8=AE$7,$I8=AE$7,$J8=AE$7,$K8=AE$7,$L8=AE$7,$M8=AE$7,$N8=AE$7)),$F8,IF(W8=AE$7,$F8,"")) ->  | AF8: =IF(AND($E8="Y",OR($G8=AF$7,$I8=AF$7,$J8=AF$7,$K8=AF$7,$L8=AF$7,$M8=AF$7,$N8=AF$7)),$F8,IF(X8=AF$7,$F8,"")) ->  | AG8: =IF(AND($E8="Y",OR($G8=AG$7,$I8=AG$7,$J8=AG$7,$K8=AG$7,$L8=AG$7,$M8=AG$7,$N8=AG$7)),$F8,IF(XFD8=AG$7,$F8,"")) ->  | AH8: =IF(AND($E8="Y",OR($G8=AH$7,$I8=AH$7,$J8=AH$7,$K8=AH$7,$L8=AH$7,$M8=AH$7,$N8=AH$7)),$F8,IF(XFD8=AH$7,$F8,"")) ->  | AI8: =IF(AND($E8="Y",OR($G8=AI$7,$I8=AI$7,$J8=AI$7,$K8=AI$7,$L8=AI$7,$M8=AI$7,$N8=AI$7)),$F8,IF(AA8=AI$7,$F8,"")) ->  | AJ8: =IF(AND($E8="Y",OR($G8=AJ$7,$I8=AJ$7,$J8=AJ$7,$K8=AJ$7,$L8=AJ$7,$M8=AJ$7,$N8=AJ$7)),$F8,IF(AB8=AJ$7,$F8,"")) -> 20000 | AK8: =IF(AND($E8="Y",OR($G8=AK$7,$I8=AK$7,$J8=AK$7,$K8=AK$7,$L8=AK$7,$M8=AK$7,$N8=AK$7)),$F8,IF(AC8=AK$7,$F8,"")) ->  | AL8: =IF(AND($E8="Y",OR($G8=AL$7,$I8=AL$7,$J8=AL$7,$K8=AL$7,$L8=AL$7,$M8=AL$7,$N8=AL$7)),$F8,IF(AD8=AL$7,$F8,"")) ->  | AM8: =IF(AND($E8="Y",OR($G8=AM$7,$I8=AM$7,$J8=AM$7,$K8=AM$7,$L8=AM$7,$M8=AM$7,$N8=AM$7)),$F8,IF(AE8=AM$7,$F8,"")) ->  | AN8: =SUM(O8:AM8) -> 80000 | AO8: =AN8/25 -> 3200 | AP8: =IF(H8=0,0,F8/H8) -> 2000
B9: Buildings | C9: Solar Panels at City Hall | E9: y | F9: 100000 | G9: 2025 | H9: 15 | I9: =G9+$H9 -> 2040 | J9: =I9+$H9 -> 2055 | K9: =J9+$H9 -> 2070 | L9: =K9+$H9 -> 2085 | M9: =L9+$H9 -> 2100 | N9: =M9+$H9 -> 2115 | O9: =IF(AND($E9="Y",OR($G9=O$7,$I9=O$7,$J9=O$7,$K9=O$7,$L9=O$7,$M9=O$7,$N9=O$7)),$F9,IF(G9=O$7,$F9,"")) ->  | P9: =IF(AND($E9="Y",OR($G9=P$7,$I9=P$7,$J9=P$7,$K9=P$7,$L9=P$7,$M9=P$7,$N9=P$7)),$F9,IF(H9=P$7,$F9,"")) ->  | Q9: =IF(AND($E9="Y",OR($G9=Q$7,$I9=Q$7,$J9=Q$7,$K9=Q$7,$L9=Q$7,$M9=Q$7,$N9=Q$7)),$F9,IF(I9=Q$7,$F9,"")) ->  | R9: =IF(AND($E9="Y",OR($G9=R$7,$I9=R$7,$J9=R$7,$K9=R$7,$L9=R$7,$M9=R$7,$N9=R$7)),$F9,IF(J9=R$7,$F9,"")) ->  | S9: =IF(AND($E9="Y",OR($G9=S$7,$I9=S$7,$J9=S$7,$K9=S$7,$L9=S$7,$M9=S$7,$N9=S$7)),$F9,IF(K9=S$7,$F9,"")) ->  | T9: =IF(AND($E9="Y",OR($G9=T$7,$I9=T$7,$J9=T$7,$K9=T$7,$L9=T$7,$M9=T$7,$N9=T$7)),$F9,IF(L9=T$7,$F9,"")) ->  | U9: =IF(AND($E9="Y",OR($G9=U$7,$I9=U$7,$J9=U$7,$K9=U$7,$L9=U$7,$M9=U$7,$N9=U$7)),$F9,IF(M9=U$7,$F9,"")) -> 100000 | V9: =IF(AND($E9="Y",OR($G9=V$7,$I9=V$7,$J9=V$7,$K9=V$7,$L9=V$7,$M9=V$7,$N9=V$7)),$F9,IF(N9=V$7,$F9,"")) ->  | W9: =IF(AND($E9="Y",OR($G9=W$7,$I9=W$7,$J9=W$7,$K9=W$7,$L9=W$7,$M9=W$7,$N9=W$7)),$F9,IF(O9=W$7,$F9,"")) ->  | X9: =IF(AND($E9="Y",OR($G9=X$7,$I9=X$7,$J9=X$7,$K9=X$7,$L9=X$7,$M9=X$7,$N9=X$7)),$F9,IF(P9=X$7,$F9,"")) ->  | Y9: =IF(AND($E9="Y",OR($G9=Y$7,$I9=Y$7,$J9=Y$7,$K9=Y$7,$L9=Y$7,$M9=Y$7,$N9=Y$7)),$F9,IF(Q9=Y$7,$F9,"")) ->  | Z9: =IF(AND($E9="Y",OR($G9=Z$7,$I9=Z$7,$J9=Z$7,$K9=Z$7,$L9=Z$7,$M9=Z$7,$N9=Z$7)),$F9,IF(R9=Z$7,$F9,"")) ->  | AA9: =IF(AND($E9="Y",OR($G9=AA$7,$I9=AA$7,$J9=AA$7,$K9=AA$7,$L9=AA$7,$M9=AA$7,$N9=AA$7)),$F9,IF(S9=AA$7,$F9,"")) ->  | AB9: =IF(AND($E9="Y",OR($G9=AB$7,$I9=AB$7,$J9=AB$7,$K9=AB$7,$L9=AB$7,$M9=AB$7,$N9=AB$7)),$F9,IF(T9=AB$7,$F9,"")) ->  | AC9: =IF(AND($E9="Y",OR($G9=AC$7,$I9=AC$7,$J9=AC$7,$K9=AC$7,$L9=AC$7,$M9=AC$7,$N9=AC$7)),$F9,IF(U9=AC$7,$F9,"")) ->  | AD9: =IF(AND($E9="Y",OR($G9=AD$7,$I9=AD$7,$J9=AD$7,$K9=AD$7,$L9=AD$7,$M9=AD$7,$N9=AD$7)),$F9,IF(V9=AD$7,$F9,"")) ->  | AE9: =IF(AND($E9="Y",OR($G9=AE$7,$I9=AE$7,$J9=AE$7,$K9=AE$7,$L9=AE$7,$M9=AE$7,$N9=AE$7)),$F9,IF(W9=AE$7,$F9,"")) ->  | AF9: =IF(AND($E9="Y",OR($G9=AF$7,$I9=AF$7,$J9=AF$7,$K9=AF$7,$L9=AF$7,$M9=AF$7,$N9=AF$7)),$F9,IF(X9=AF$7,$F9,"")) ->  | AG9: =IF(AND($E9="Y",OR($G9=AG$7,$I9=AG$7,$J9=AG$7,$K9=AG$7,$L9=AG$7,$M9=AG$7,$N9=AG$7)),$F9,IF(Y9=AG$7,$F9,"")) ->  | AH9: =IF(AND($E9="Y",OR($G9=AH$7,$I9=AH$7,$J9=AH$7,$K9=AH$7,$L9=AH$7,$M9=AH$7,$N9=AH$7)),$F9,IF(Z9=AH$7,$F9,"")) ->  | AI9: =IF(AND($E9="Y",OR($G9=AI$7,$I9=AI$7,$J9=AI$7,$K9=AI$7,$L9=AI$7,$M9=AI$7,$N9=AI$7)),$F9,IF(AA9=AI$7,$F9,"")) ->  | AJ9: =IF(AND($E9="Y",OR($G9=AJ$7,$I9=AJ$7,$J9=AJ$7,$K9=AJ$7,$L9=AJ$7,$M9=AJ$7,$N9=AJ$7)),$F9,IF(AB9=AJ$7,$F9,"")) -> 100000 | AK9: =IF(AND($E9="Y",OR($G9=AK$7,$I9=AK$7,$J9=AK$7,$K9=AK$7,$L9=AK$7,$M9=AK$7,$N9=AK$7)),$F9,IF(AC9=AK$7,$F9,"")) ->  | AL9: =IF(AND($E9="Y",OR($G9=AL$7,$I9=AL$7,$J9=AL$7,$K9=AL$7,$L9=AL$7,$M9=AL$7,$N9=AL$7)),$F9,IF(AD9=AL$7,$F9,"")) ->  | AM9: =IF(AND($E9="Y",OR($G9=AM$7,$I9=AM$7,$J9=AM$7,$K9=AM$7,$L9=AM$7,$M9=AM$7,$N9=AM$7)),$F9,IF(AE9=AM$7,$F9,"")) ->  | AN9: =SUM(O9:AM9) -> 200000 | AO9: =AN9/25 -> 8000 | AP9: =IF(H9=0,0,F9/H9) -> 6666.666667
B10: Recreation | C10: New Boat Launch | E10: y | F10: 75000 | G10: 2030 | H10: 25 | I10: =G10+$H10 -> 2055 | J10: =I10+$H10 -> 2080 | K10: =J10+$H10 -> 2105 | L10: =K10+$H10 -> 2130 | M10: =L10+$H10 -> 2155 | N10: =M10+$H10 -> 2180 | O10: =IF(AND($E10="Y",OR($G10=O$7,$I10=O$7,$J10=O$7,$K10=O$7,$L10=O$7,$M10=O$7,$N10=O$7)),$F10,IF(G10=O$7,$F10,"")) ->  | P10: =IF(AND($E10="Y",OR($G10=P$7,$I10=P$7,$J10=P$7,$K10=P$7,$L10=P$7,$M10=P$7,$N10=P$7)),$F10,IF(H10=P$7,$F10,"")) ->  | Q10: =IF(AND($E10="Y",OR($G10=Q$7,$I10=Q$7,$J10=Q$7,$K10=Q$7,$L10=Q$7,$M10=Q$7,$N10=Q$7)),$F10,IF(I10=Q$7,$F10,"")) ->  | R10: =IF(AND($E10="Y",OR($G10=R$7,$I10=R$7,$J10=R$7,$K10=R$7,$L10=R$7,$M10=R$7,$N10=R$7)),$F10,IF(J10=R$7,$F10,"")) ->  | S10: =IF(AND($E10="Y",OR($G10=S$7,$I10=S$7,$J10=S$7,$K10=S$7,$L10=S$7,$M10=S$7,$N10=S$7)),$F10,IF(K10=S$7,$F10,"")) ->  | T10: =IF(AND($E10="Y",OR($G10=T$7,$I10=T$7,$J10=T$7,$K10=T$7,$L10=T$7,$M10=T$7,$N10=T$7)),$F10,IF(L10=T$7,$F10,"")) ->  | U10: =IF(AND($E10="Y",OR($G10=U$7,$I10=U$7,$J10=U$7,$K10=U$7,$L10=U$7,$M10=U$7,$N10=U$7)),$F10,IF(M10=U$7,$F10,"")) ->  | V10: =IF(AND($E10="Y",OR($G10=V$7,$I10=V$7,$J10=V$7,$K10=V$7,$L10=V$7,$M10=V$7,$N10=V$7)),$F10,IF(N10=V$7,$F10,"")) ->  | W10: =IF(AND($E10="Y",OR($G10=W$7,$I10=W$7,$J10=W$7,$K10=W$7,$L10=W$7,$M10=W$7,$N10=W$7)),$F10,IF(O10=W$7,$F10,"")) ->  | X10: =IF(AND($E10="Y",OR($G10=X$7,$I10=X$7,$J10=X$7,$K10=X$7,$L10=X$7,$M10=X$7,$N10=X$7)),$F10,IF(P10=X$7,$F10,"")) ->  | Y10: =IF(AND($E10="Y",OR($G10=XFD$7,$I10=XFD$7,$J10=XFD$7,$K10=XFD$7,$L10=XFD$7,$M10=XFD$7,$N10=XFD$7)),$F10,IF(Q10=XFD$7,$F10,"")) -> 75000 | Z10: =IF(AND($E10="Y",OR($G10=XFD$7,$I10=XFD$7,$J10=XFD$7,$K10=XFD$7,$L10=XFD$7,$M10=XFD$7,$N10=XFD$7)),$F10,IF(R10=XFD$7,$F10,"")) -> 75000 | AA10: =IF(AND($E10="Y",OR($G10=AA$7,$I10=AA$7,$J10=AA$7,$K10=AA$7,$L10=AA$7,$M10=AA$7,$N10=AA$7)),$F10,IF(S10=AA$7,$F10,"")) ->  | AB10: =IF(AND($E10="Y",OR($G10=AB$7,$I10=AB$7,$J10=AB$7,$K10=AB$7,$L10=AB$7,$M10=AB$7,$N10=AB$7)),$F10,IF(T10=AB$7,$F10,"")) ->  | AC10: =IF(AND($E10="Y",OR($G10=AC$7,$I10=AC$7,$J10=AC$7,$K10=AC$7,$L10=AC$7,$M10=AC$7,$N10=AC$7)),$F10,IF(U10=AC$7,$F10,"")) ->  | AD10: =IF(AND($E10="Y",OR($G10=AD$7,$I10=AD$7,$J10=AD$7,$K10=AD$7,$L10=AD$7,$M10=AD$7,$N10=AD$7)),$F10,IF(V10=AD$7,$F10,"")) ->  | AE10: =IF(AND($E10="Y",OR($G10=AE$7,$I10=AE$7,$J10=AE$7,$K10=AE$7,$L10=AE$7,$M10=AE$7,$N10=AE$7)),$F10,IF(W10=AE$7,$F10,"")) ->  | AF10: =IF(AND($E10="Y",OR($G10=AF$7,$I10=AF$7,$J10=AF$7,$K10=AF$7,$L10=AF$7,$M10=AF$7,$N10=AF$7)),$F10,IF(X10=AF$7,$F10,"")) ->  | AG10: =IF(AND($E10="Y",OR($G10=AG$7,$I10=AG$7,$J10=AG$7,$K10=AG$7,$L10=AG$7,$M10=AG$7,$N10=AG$7)),$F10,IF(XFD10=AG$7,$F10,"")) ->  | AH10: =IF(AND($E10="Y",OR($G10=AH$7,$I10=AH$7,$J10=AH$7,$K10=AH$7,$L10=AH$7,$M10=AH$7,$N10=AH$7)),$F10,IF(XFD10=AH$7,$F10,"")) ->  | AI10: =IF(AND($E10="Y",OR($G10=AI$7,$I10=AI$7,$J10=AI$7,$K10=AI$7,$L10=AI$7,$M10=AI$7,$N10=AI$7)),$F10,IF(AA10=AI$7,$F10,"")) ->  | AJ10: =IF(AND($E10="Y",OR($G10=AJ$7,$I10=AJ$7,$J10=AJ$7,$K10=AJ$7,$L10=AJ$7,$M10=AJ$7,$N10=AJ$7)),$F10,IF(AB10=AJ$7,$F10,"")) ->  | AK10: =IF(AND($E10="Y",OR($G10=AK$7,$I10=AK$7,$J10=AK$7,$K10=AK$7,$L10=AK$7,$M10=AK$7,$N10=AK$7)),$F10,IF(AC10=AK$7,$F10,"")) ->  | AL10: =IF(AND($E10="Y",OR($G10=AL$7,$I10=AL$7,$J10=AL$7,$K10=AL$7,$L10=AL$7,$M10=AL$7,$N10=AL$7)),$F10,IF(AD10=AL$7,$F10,"")) ->  | AM10: =IF(AND($E10="Y",OR($G10=AM$7,$I10=AM$7,$J10=AM$7,$K10=AM$7,$L10=AM$7,$M10=AM$7,$N10=AM$7)),$F10,IF(AE10=AM$7,$F10,"")) ->  | AN10: =SUM(O10:AM10) -> 150000 | AO10: =AN10/25 -> 6000 | AP10: =IF(H10=0,0,F10/H10) -> 3000
B11: Vehicles | C11: Second Fire Truck | E11: y | F11: 125000 | G11: 2031 | H11: 50 | I11: =G11+$H11 -> 2081 | J11: =I11+$H11 -> 2131 | K11: =J11+$H11 -> 2181 | L11: =K11+$H11 -> 2231 | M11: =L11+$H11 -> 2281 | N11: =M11+$H11 -> 2331 | O11: =IF(AND($E11="Y",OR($G11=O$7,$I11=O$7,$J11=O$7,$K11=O$7,$L11=O$7,$M11=O$7,$N11=O$7)),$F11,IF(G11=O$7,$F11,"")) ->  | P11: =IF(AND($E11="Y",OR($G11=P$7,$I11=P$7,$J11=P$7,$K11=P$7,$L11=P$7,$M11=P$7,$N11=P$7)),$F11,IF(H11=P$7,$F11,"")) ->  | Q11: =IF(AND($E11="Y",OR($G11=Q$7,$I11=Q$7,$J11=Q$7,$K11=Q$7,$L11=Q$7,$M11=Q$7,$N11=Q$7)),$F11,IF(I11=Q$7,$F11,"")) ->  | R11: =IF(AND($E11="Y",OR($G11=R$7,$I11=R$7,$J11=R$7,$K11=R$7,$L11=R$7,$M11=R$7,$N11=R$7)),$F11,IF(J11=R$7,$F11,"")) ->  | S11: =IF(AND($E11="Y",OR($G11=S$7,$I11=S$7,$J11=S$7,$K11=S$7,$L11=S$7,$M11=S$7,$N11=S$7)),$F11,IF(K11=S$7,$F11,"")) ->  | T11: =IF(AND($E11="Y",OR($G11=T$7,$I11=T$7,$J11=T$7,$K11=T$7,$L11=T$7,$M11=T$7,$N11=T$7)),$F11,IF(L11=T$7,$F11,"")) ->  | U11: =IF(AND($E11="Y",OR($G11=U$7,$I11=U$7,$J11=U$7,$K11=U$7,$L11=U$7,$M11=U$7,$N11=U$7)),$F11,IF(M11=U$7,$F11,"")) ->  | V11: =IF(AND($E11="Y",OR($G11=V$7,$I11=V$7,$J11=V$7,$K11=V$7,$L11=V$7,$M11=V$7,$N11=V$7)),$F11,IF(N11=V$7,$F11,"")) ->  | W11: =IF(AND($E11="Y",OR($G11=W$7,$I11=W$7,$J11=W$7,$K11=W$7,$L11=W$7,$M11=W$7,$N11=W$7)),$F11,IF(O11=W$7,$F11,"")) ->  | X11: =IF(AND($E11="Y",OR($G11=X$7,$I11=X$7,$J11=X$7,$K11=X$7,$L11=X$7,$M11=X$7,$N11=X$7)),$F11,IF(P11=X$7,$F11,"")) ->  | Y11: =IF(AND($E11="Y",OR($G11=XFD$7,$I11=XFD$7,$J11=XFD$7,$K11=XFD$7,$L11=XFD$7,$M11=XFD$7,$N11=XFD$7)),$F11,IF(Q11=XFD$7,$F11,"")) -> 125000 | Z11: =IF(AND($E11="Y",OR($G11=XFD$7,$I11=XFD$7,$J11=XFD$7,$K11=XFD$7,$L11=XFD$7,$M11=XFD$7,$N11=XFD$7)),$F11,IF(R11=XFD$7,$F11,"")) -> 125000 | AA11: =IF(AND($E11="Y",OR($G11=AA$7,$I11=AA$7,$J11=AA$7,$K11=AA$7,$L11=AA$7,$M11=AA$7,$N11=AA$7)),$F11,IF(S11=AA$7,$F11,"")) -> 125000 | AB11: =IF(AND($E11="Y",OR($G11=AB$7,$I11=AB$7,$J11=AB$7,$K11=AB$7,$L11=AB$7,$M11=AB$7,$N11=AB$7)),$F11,IF(T11=AB$7,$F11,"")) ->  | AC11: =IF(AND($E11="Y",OR($G11=AC$7,$I11=AC$7,$J11=AC$7,$K11=AC$7,$L11=AC$7,$M11=AC$7,$N11=AC$7)),$F11,IF(U11=AC$7,$F11,"")) ->  | AD11: =IF(AND($E11="Y",OR($G11=AD$7,$I11=AD$7,$J11=AD$7,$K11=AD$7,$L11=AD$7,$M11=AD$7,$N11=AD$7)),$F11,IF(V11=AD$7,$F11,"")) ->  | AE11: =IF(AND($E11="Y",OR($G11=AE$7,$I11=AE$7,$J11=AE$7,$K11=AE$7,$L11=AE$7,$M11=AE$7,$N11=AE$7)),$F11,IF(W11=AE$7,$F11,"")) ->  | AF11: =IF(AND($E11="Y",OR($G11=AF$7,$I11=AF$7,$J11=AF$7,$K11=AF$7,$L11=AF$7,$M11=AF$7,$N11=AF$7)),$F11,IF(X11=AF$7,$F11,"")) ->  | AG11: =IF(AND($E11="Y",OR($G11=AG$7,$I11=AG$7,$J11=AG$7,$K11=AG$7,$L11=AG$7,$M11=AG$7,$N11=AG$7)),$F11,IF(XFD11=AG$7,$F11,"")) ->  | AH11: =IF(AND($E11="Y",OR($G11=AH$7,$I11=AH$7,$J11=AH$7,$K11=AH$7,$L11=AH$7,$M11=AH$7,$N11=AH$7)),$F11,IF(XFD11=AH$7,$F11,"")) ->  | AI11: =IF(AND($E11="Y",OR($G11=AI$7,$I11=AI$7,$J11=AI$7,$K11=AI$7,$L11=AI$7,$M11=AI$7,$N11=AI$7)),$F11,IF(AA11=AI$7,$F11,"")) ->  | AJ11: =IF(AND($E11="Y",OR($G11=AJ$7,$I11=AJ$7,$J11=AJ$7,$K11=AJ$7,$L11=AJ$7,$M11=AJ$7,$N11=AJ$7)),$F11,IF(AB11=AJ$7,$F11,"")) ->  | AK11: =IF(AND($E11="Y",OR($G11=AK$7,$I11=AK$7,$J11=AK$7,$K11=AK$7,$L11=AK$7,$M11=AK$7,$N11=AK$7)),$F11,IF(AC11=AK$7,$F11,"")) ->  | AL11: =IF(AND($E11="Y",OR($G11=AL$7,$I11=AL$7,$J11=AL$7,$K11=AL$7,$L11=AL$7,$M11=AL$7,$N11=AL$7)),$F11,IF(AD11=AL$7,$F11,"")) ->  | AM11: =IF(AND($E11="Y",OR($G11=AM$7,$I11=AM$7,$J11=AM$7,$K11=AM$7,$L11=AM$7,$M11=AM$7,$N11=AM$7)),$F11,IF(AE11=AM$7,$F11,"")) ->  | AN11: =SUM(O11:AM11) -> 375000 | AO11: =AN11/25 -> 15000 | AP11: =IF(H11=0,0,F11/H11) -> 2500
I12: =G12+$H12 -> 0 | J12: =I12+$H12 -> 0 | K12: =J12+$H12 -> 0 | L12: =K12+$H12 -> 0 | M12: =L12+$H12 -> 0 | N12: =M12+$H12 -> 0 | O12: =IF(AND($E12="Y",OR($G12=O$7,$I12=O$7,$J12=O$7,$K12=O$7,$L12=O$7,$M12=O$7,$N12=O$7)),$F12,IF(G12=O$7,$F12,"")) ->  | P12: =IF(AND($E12="Y",OR($G12=P$7,$I12=P$7,$J12=P$7,$K12=P$7,$L12=P$7,$M12=P$7,$N12=P$7)),$F12,IF(H12=P$7,$F12,"")) ->  | Q12: =IF(AND($E12="Y",OR($G12=Q$7,$I12=Q$7,$J12=Q$7,$K12=Q$7,$L12=Q$7,$M12=Q$7,$N12=Q$7)),$F12,IF(I12=Q$7,$F12,"")) ->  | R12: =IF(AND($E12="Y",OR($G12=R$7,$I12=R$7,$J12=R$7,$K12=R$7,$L12=R$7,$M12=R$7,$N12=R$7)),$F12,IF(J12=R$7,$F12,"")) ->  | S12: =IF(AND($E12="Y",OR($G12=S$7,$I12=S$7,$J12=S$7,$K12=S$7,$L12=S$7,$M12=S$7,$N12=S$7)),$F12,IF(K12=S$7,$F12,"")) ->  | T12: =IF(AND($E12="Y",OR($G12=T$7,$I12=T$7,$J12=T$7,$K12=T$7,$L12=T$7,$M12=T$7,$N12=T$7)),$F12,IF(L12=T$7,$F12,"")) ->  | U12: =IF(AND($E12="Y",OR($G12=U$7,$I12=U$7,$J12=U$7,$K12=U$7,$L12=U$7,$M12=U$7,$N12=U$7)),$F12,IF(M12=U$7,$F12,"")) ->  | V12: =IF(AND($E12="Y",OR($G12=V$7,$I12=V$7,$J12=V$7,$K12=V$7,$L12=V$7,$M12=V$7,$N12=V$7)),$F12,IF(N12=V$7,$F12,"")) ->  | W12: =IF(AND($E12="Y",OR($G12=W$7,$I12=W$7,$J12=W$7,$K12=W$7,$L12=W$7,$M12=W$7,$N12=W$7)),$F12,IF(O12=W$7,$F12,"")) ->  | X12: =IF(AND($E12="Y",OR($G12=X$7,$I12=X$7,$J12=X$7,$K12=X$7,$L12=X$7,$M12=X$7,$N12=X$7)),$F12,IF(P12=X$7,$F12,"")) ->  | Y12: =IF(AND($E12="Y",OR($G12=XFD$7,$I12=XFD$7,$J12=XFD$7,$K12=XFD$7,$L12=XFD$7,$M12=XFD$7,$N12=XFD$7)),$F12,IF(Q12=XFD$7,$F12,"")) ->  | Z12: =IF(AND($E12="Y",OR($G12=XFD$7,$I12=XFD$7,$J12=XFD$7,$K12=XFD$7,$L12=XFD$7,$M12=XFD$7,$N12=XFD$7)),$F12,IF(R12=XFD$7,$F12,"")) ->  | AA12: =IF(AND($E12="Y",OR($G12=AA$7,$I12=AA$7,$J12=AA$7,$K12=AA$7,$L12=AA$7,$M12=AA$7,$N12=AA$7)),$F12,IF(S12=AA$7,$F12,"")) ->  | AB12: =IF(AND($E12="Y",OR($G12=AB$7,$I12=AB$7,$J12=AB$7,$K12=AB$7,$L12=AB$7,$M12=AB$7,$N12=AB$7)),$F12,IF(T12=AB$7,$F12,"")) ->  | AC12: =IF(AND($E12="Y",OR($G12=AC$7,$I12=AC$7,$J12=AC$7,$K12=AC$7,$L12=AC$7,$M12=AC$7,$N12=AC$7)),$F12,IF(U12=AC$7,$F12,"")) ->  | AD12: =IF(AND($E12="Y",OR($G12=AD$7,$I12=AD$7,$J12=AD$7,$K12=AD$7,$L12=AD$7,$M12=AD$7,$N12=AD$7)),$F12,IF(V12=AD$7,$F12,"")) ->  | AE12: =IF(AND($E12="Y",OR($G12=AE$7,$I12=AE$7,$J12=AE$7,$K12=AE$7,$L12=AE$7,$M12=AE$7,$N12=AE$7)),$F12,IF(W12=AE$7,$F12,"")) ->  | AF12: =IF(AND($E12="Y",OR($G12=AF$7,$I12=AF$7,$J12=AF$7,$K12=AF$7,$L12=AF$7,$M12=AF$7,$N12=AF$7)),$F12,IF(X12=AF$7,$F12,"")) ->  | AG12: =IF(AND($E12="Y",OR($G12=AG$7,$I12=AG$7,$J12=AG$7,$K12=AG$7,$L12=AG$7,$M12=AG$7,$N12=AG$7)),$F12,IF(XFD12=AG$7,$F12,"")) ->  | AH12: =IF(AND($E12="Y",OR($G12=AH$7,$I12=AH$7,$J12=AH$7,$K12=AH$7,$L12=AH$7,$M12=AH$7,$N12=AH$7)),$F12,IF(XFD12=AH$7,$F12,"")) ->  | AI12: =IF(AND($E12="Y",OR($G12=AI$7,$I12=AI$7,$J12=AI$7,$K12=AI$7,$L12=AI$7,$M12=AI$7,$N12=AI$7)),$F12,IF(AA12=AI$7,$F12,"")) ->  | AJ12: =IF(AND($E12="Y",OR($G12=AJ$7,$I12=AJ$7,$J12=AJ$7,$K12=AJ$7,$L12=AJ$7,$M12=AJ$7,$N12=AJ$7)),$F12,IF(AB12=AJ$7,$F12,"")) ->  | AK12: =IF(AND($E12="Y",OR($G12=AK$7,$I12=AK$7,$J12=AK$7,$K12=AK$7,$L12=AK$7,$M12=AK$7,$N12=AK$7)),$F12,IF(AC12=AK$7,$F12,"")) ->  | AL12: =IF(AND($E12="Y",OR($G12=AL$7,$I12=AL$7,$J12=AL$7,$K12=AL$7,$L12=AL$7,$M12=AL$7,$N12=AL$7)),$F12,IF(AD12=AL$7,$F12,"")) ->  | AM12: =IF(AND($E12="Y",OR($G12=AM$7,$I12=AM$7,$J12=AM$7,$K12=AM$7,$L12=AM$7,$M12=AM$7,$N12=AM$7)),$F12,IF(AE12=AM$7,$F12,"")) ->  | AN12: =SUM(O12:AM12) -> 0 | AO12: =AN12/25 -> 0 | AP12: =IF(H12=0,0,F12/H12) -> 0
I13: =G13+$H13 -> 0 | J13: =I13+$H13 -> 0 | K13: =J13+$H13 -> 0 | L13: =K13+$H13 -> 0 | M13: =L13+$H13 -> 0 | N13: =M13+$H13 -> 0 | O13: =IF(AND($E13="Y",OR($G13=O$7,$I13=O$7,$J13=O$7,$K13=O$7,$L13=O$7,$M13=O$7,$N13=O$7)),$F13,IF(G13=O$7,$F13,"")) ->  | P13: =IF(AND($E13="Y",OR($G13=P$7,$I13=P$7,$J13=P$7,$K13=P$7,$L13=P$7,$M13=P$7,$N13=P$7)),$F13,IF(H13=P$7,$F13,"")) ->  | Q13: =IF(AND($E13="Y",OR($G13=Q$7,$I13=Q$7,$J13=Q$7,$K13=Q$7,$L13=Q$7,$M13=Q$7,$N13=Q$7)),$F13,IF(I13=Q$7,$F13,"")) ->  | R13: =IF(AND($E13="Y",OR($G13=R$7,$I13=R$7,$J13=R$7,$K13=R$7,$L13=R$7,$M13=R$7,$N13=R$7)),$F13,IF(J13=R$7,$F13,"")) ->  | S13: =IF(AND($E13="Y",OR($G13=S$7,$I13=S$7,$J13=S$7,$K13=S$7,$L13=S$7,$M13=S$7,$N13=S$7)),$F13,IF(K13=S$7,$F13,"")) ->  | T13: =IF(AND($E13="Y",OR($G13=T$7,$I13=T$7,$J13=T$7,$K13=T$7,$L13=T$7,$M13=T$7,$N13=T$7)),$F13,IF(L13=T$7,$F13,"")) ->  | U13: =IF(AND($E13="Y",OR($G13=U$7,$I13=U$7,$J13=U$7,$K13=U$7,$L13=U$7,$M13=U$7,$N13=U$7)),$F13,IF(M13=U$7,$F13,"")) ->  | V13: =IF(AND($E13="Y",OR($G13=V$7,$I13=V$7,$J13=V$7,$K13=V$7,$L13=V$7,$M13=V$7,$N13=V$7)),$F13,IF(N13=V$7,$F13,"")) ->  | W13: =IF(AND($E13="Y",OR($G13=W$7,$I13=W$7,$J13=W$7,$K13=W$7,$L13=W$7,$M13=W$7,$N13=W$7)),$F13,IF(O13=W$7,$F13,"")) ->  | X13: =IF(AND($E13="Y",OR($G13=X$7,$I13=X$7,$J13=X$7,$K13=X$7,$L13=X$7,$M13=X$7,$N13=X$7)),$F13,IF(P13=X$7,$F13,"")) ->  | Y13: =IF(AND($E13="Y",OR($G13=XFD$7,$I13=XFD$7,$J13=XFD$7,$K13=XFD$7,$L13=XFD$7,$M13=XFD$7,$N13=XFD$7)),$F13,IF(Q13=XFD$7,$F13,"")) ->  | Z13: =IF(AND($E13="Y",OR($G13=XFD$7,$I13=XFD$7,$J13=XFD$7,$K13=XFD$7,$L13=XFD$7,$M13=XFD$7,$N13=XFD$7)),$F13,IF(R13=XFD$7,$F13,"")) ->  | AA13: =IF(AND($E13="Y",OR($G13=AA$7,$I13=AA$7,$J13=AA$7,$K13=AA$7,$L13=AA$7,$M13=AA$7,$N13=AA$7)),$F13,IF(S13=AA$7,$F13,"")) ->  | AB13: =IF(AND($E13="Y",OR($G13=AB$7,$I13=AB$7,$J13=AB$7,$K13=AB$7,$L13=AB$7,$M13=AB$7,$N13=AB$7)),$F13,IF(T13=AB$7,$F13,"")) ->  | AC13: =IF(AND($E13="Y",OR($G13=AC$7,$I13=AC$7,$J13=AC$7,$K13=AC$7,$L13=AC$7,$M13=AC$7,$N13=AC$7)),$F13,IF(U13=AC$7,$F13,"")) ->  | AD13: =IF(AND($E13="Y",OR($G13=AD$7,$I13=AD$7,$J13=AD$7,$K13=AD$7,$L13=AD$7,$M13=AD$7,$N13=AD$7)),$F13,IF(V13=AD$7,$F13,"")) ->  | AE13: =IF(AND($E13="Y",OR($G13=AE$7,$I13=AE$7,$J13=AE$7,$K13=AE$7,$L13=AE$7,$M13=AE$7,$N13=AE$7)),$F13,IF(W13=AE$7,$F13,"")) ->  | AF13: =IF(AND($E13="Y",OR($G13=AF$7,$I13=AF$7,$J13=AF$7,$K13=AF$7,$L13=AF$7,$M13=AF$7,$N13=AF$7)),$F13,IF(X13=AF$7,$F13,"")) ->  | AG13: =IF(AND($E13="Y",OR($G13=AG$7,$I13=AG$7,$J13=AG$7,$K13=AG$7,$L13=AG$7,$M13=AG$7,$N13=AG$7)),$F13,IF(XFD13=AG$7,$F13,"")) ->  | AH13: =IF(AND($E13="Y",OR($G13=AH$7,$I13=AH$7,$J13=AH$7,$K13=AH$7,$L13=AH$7,$M13=AH$7,$N13=AH$7)),$F13,IF(XFD13=AH$7,$F13,"")) ->  | AI13: =IF(AND($E13="Y",OR($G13=AI$7,$I13=AI$7,$J13=AI$7,$K13=AI$7,$L13=AI$7,$M13=AI$7,$N13=AI$7)),$F13,IF(AA13=AI$7,$F13,"")) ->  | AJ13: =IF(AND($E13="Y",OR($G13=AJ$7,$I13=AJ$7,$J13=AJ$7,$K13=AJ$7,$L13=AJ$7,$M13=AJ$7,$N13=AJ$7)),$F13,IF(AB13=AJ$7,$F13,"")) ->  | AK13: =IF(AND($E13="Y",OR($G13=AK$7,$I13=AK$7,$J13=AK$7,$K13=AK$7,$L13=AK$7,$M13=AK$7,$N13=AK$7)),$F13,IF(AC13=AK$7,$F13,"")) ->  | AL13: =IF(AND($E13="Y",OR($G13=AL$7,$I13=AL$7,$J13=AL$7,$K13=AL$7,$L13=AL$7,$M13=AL$7,$N13=AL$7)),$F13,IF(AD13=AL$7,$F13,"")) ->  | AM13: =IF(AND($E13="Y",OR($G13=AM$7,$I13=AM$7,$J13=AM$7,$K13=AM$7,$L13=AM$7,$M13=AM$7,$N13=AM$7)),$F13,IF(AE13=AM$7,$F13,"")) ->  | AN13: =SUM(O13:AM13) -> 0 | AO13: =AN13/25 -> 0 | AP13: =IF(H13=0,0,F13/H13) -> 0
I14: =G14+$H14 -> 0 | J14: =I14+$H14 -> 0 | K14: =J14+$H14 -> 0 | L14: =K14+$H14 -> 0 | M14: =L14+$H14 -> 0 | N14: =M14+$H14 -> 0 | O14: =IF(AND($E14="Y",OR($G14=O$7,$I14=O$7,$J14=O$7,$K14=O$7,$L14=O$7,$M14=O$7,$N14=O$7)),$F14,IF(G14=O$7,$F14,"")) ->  | P14: =IF(AND($E14="Y",OR($G14=P$7,$I14=P$7,$J14=P$7,$K14=P$7,$L14=P$7,$M14=P$7,$N14=P$7)),$F14,IF(H14=P$7,$F14,"")) ->  | Q14: =IF(AND($E14="Y",OR($G14=Q$7,$I14=Q$7,$J14=Q$7,$K14=Q$7,$L14=Q$7,$M14=Q$7,$N14=Q$7)),$F14,IF(I14=Q$7,$F14,"")) ->  | R14: =IF(AND($E14="Y",OR($G14=R$7,$I14=R$7,$J14=R$7,$K14=R$7,$L14=R$7,$M14=R$7,$N14=R$7)),$F14,IF(J14=R$7,$F14,"")) ->  | S14: =IF(AND($E14="Y",OR($G14=S$7,$I14=S$7,$J14=S$7,$K14=S$7,$L14=S$7,$M14=S$7,$N14=S$7)),$F14,IF(K14=S$7,$F14,"")) ->  | T14: =IF(AND($E14="Y",OR($G14=T$7,$I14=T$7,$J14=T$7,$K14=T$7,$L14=T$7,$M14=T$7,$N14=T$7)),$F14,IF(L14=T$7,$F14,"")) ->  | U14: =IF(AND($E14="Y",OR($G14=U$7,$I14=U$7,$J14=U$7,$K14=U$7,$L14=U$7,$M14=U$7,$N14=U$7)),$F14,IF(M14=U$7,$F14,"")) ->  | V14: =IF(AND($E14="Y",OR($G14=V$7,$I14=V$7,$J14=V$7,$K14=V$7,$L14=V$7,$M14=V$7,$N14=V$7)),$F14,IF(N14=V$7,$F14,"")) ->  | W14: =IF(AND($E14="Y",OR($G14=W$7,$I14=W$7,$J14=W$7,$K14=W$7,$L14=W$7,$M14=W$7,$N14=W$7)),$F14,IF(O14=W$7,$F14,"")) ->  | X14: =IF(AND($E14="Y",OR($G14=X$7,$I14=X$7,$J14=X$7,$K14=X$7,$L14=X$7,$M14=X$7,$N14=X$7)),$F14,IF(P14=X$7,$F14,"")) ->  | Y14: =IF(AND($E14="Y",OR($G14=XFD$7,$I14=XFD$7,$J14=XFD$7,$K14=XFD$7,$L14=XFD$7,$M14=XFD$7,$N14=XFD$7)),$F14,IF(Q14=XFD$7,$F14,"")) ->  | Z14: =IF(AND($E14="Y",OR($G14=XFD$7,$I14=XFD$7,$J14=XFD$7,$K14=XFD$7,$L14=XFD$7,$M14=XFD$7,$N14=XFD$7)),$F14,IF(R14=XFD$7,$F14,"")) ->  | AA14: =IF(AND($E14="Y",OR($G14=AA$7,$I14=AA$7,$J14=AA$7,$K14=AA$7,$L14=AA$7,$M14=AA$7,$N14=AA$7)),$F14,IF(S14=AA$7,$F14,"")) ->  | AB14: =IF(AND($E14="Y",OR($G14=AB$7,$I14=AB$7,$J14=AB$7,$K14=AB$7,$L14=AB$7,$M14=AB$7,$N14=AB$7)),$F14,IF(T14=AB$7,$F14,"")) ->  | AC14: =IF(AND($E14="Y",OR($G14=AC$7,$I14=AC$7,$J14=AC$7,$K14=AC$7,$L14=AC$7,$M14=AC$7,$N14=AC$7)),$F14,IF(U14=AC$7,$F14,"")) ->  | AD14: =IF(AND($E14="Y",OR($G14=AD$7,$I14=AD$7,$J14=AD$7,$K14=AD$7,$L14=AD$7,$M14=AD$7,$N14=AD$7)),$F14,IF(V14=AD$7,$F14,"")) ->  | AE14: =IF(AND($E14="Y",OR($G14=AE$7,$I14=AE$7,$J14=AE$7,$K14=AE$7,$L14=AE$7,$M14=AE$7,$N14=AE$7)),$F14,IF(W14=AE$7,$F14,"")) ->  | AF14: =IF(AND($E14="Y",OR($G14=AF$7,$I14=AF$7,$J14=AF$7,$K14=AF$7,$L14=AF$7,$M14=AF$7,$N14=AF$7)),$F14,IF(X14=AF$7,$F14,"")) ->  | AG14: =IF(AND($E14="Y",OR($G14=AG$7,$I14=AG$7,$J14=AG$7,$K14=AG$7,$L14=AG$7,$M14=AG$7,$N14=AG$7)),$F14,IF(XFD14=AG$7,$F14,"")) ->  | AH14: =IF(AND($E14="Y",OR($G14=AH$7,$I14=AH$7,$J14=AH$7,$K14=AH$7,$L14=AH$7,$M14=AH$7,$N14=AH$7)),$F14,IF(XFD14=AH$7,$F14,"")) ->  | AI14: =IF(AND($E14="Y",OR($G14=AI$7,$I14=AI$7,$J14=AI$7,$K14=AI$7,$L14=AI$7,$M14=AI$7,$N14=AI$7)),$F14,IF(AA14=AI$7,$F14,"")) ->  | AJ14: =IF(AND($E14="Y",OR($G14=AJ$7,$I14=AJ$7,$J14=AJ$7,$K14=AJ$7,$L14=AJ$7,$M14=AJ$7,$N14=AJ$7)),$F14,IF(AB14=AJ$7,$F14,"")) ->  | AK14: =IF(AND($E14="Y",OR($G14=AK$7,$I14=AK$7,$J14=AK$7,$K14=AK$7,$L14=AK$7,$M14=AK$7,$N14=AK$7)),$F14,IF(AC14=AK$7,$F14,"")) ->  | AL14: =IF(AND($E14="Y",OR($G14=AL$7,$I14=AL$7,$J14=AL$7,$K14=AL$7,$L14=AL$7,$M14=AL$7,$N14=AL$7)),$F14,IF(AD14=AL$7,$F14,"")) ->  | AM14: =IF(AND($E14="Y",OR($G14=AM$7,$I14=AM$7,$J14=AM$7,$K14=AM$7,$L14=AM$7,$M14=AM$7,$N14=AM$7)),$F14,IF(AE14=AM$7,$F14,"")) ->  | AN14: =SUM(O14:AM14) -> 0 | AO14: =AN14/25 -> 0 | AP14: =IF(H14=0,0,F14/H14) -> 0
I15: =G15+$H15 -> 0 | J15: =I15+$H15 -> 0 | K15: =J15+$H15 -> 0 | L15: =K15+$H15 -> 0 | M15: =L15+$H15 -> 0 | N15: =M15+$H15 -> 0 | O15: =IF(AND($E15="Y",OR($G15=O$7,$I15=O$7,$J15=O$7,$K15=O$7,$L15=O$7,$M15=O$7,$N15=O$7)),$F15,IF(G15=O$7,$F15,"")) ->  | P15: =IF(AND($E15="Y",OR($G15=P$7,$I15=P$7,$J15=P$7,$K15=P$7,$L15=P$7,$M15=P$7,$N15=P$7)),$F15,IF(H15=P$7,$F15,"")) ->  | Q15: =IF(AND($E15="Y",OR($G15=Q$7,$I15=Q$7,$J15=Q$7,$K15=Q$7,$L15=Q$7,$M15=Q$7,$N15=Q$7)),$F15,IF(I15=Q$7,$F15,"")) ->  | R15: =IF(AND($E15="Y",OR($G15=R$7,$I15=R$7,$J15=R$7,$K15=R$7,$L15=R$7,$M15=R$7,$N15=R$7)),$F15,IF(J15=R$7,$F15,"")) ->  | S15: =IF(AND($E15="Y",OR($G15=S$7,$I15=S$7,$J15=S$7,$K15=S$7,$L15=S$7,$M15=S$7,$N15=S$7)),$F15,IF(K15=S$7,$F15,"")) ->  | T15: =IF(AND($E15="Y",OR($G15=T$7,$I15=T$7,$J15=T$7,$K15=T$7,$L15=T$7,$M15=T$7,$N15=T$7)),$F15,IF(L15=T$7,$F15,"")) ->  | U15: =IF(AND($E15="Y",OR($G15=U$7,$I15=U$7,$J15=U$7,$K15=U$7,$L15=U$7,$M15=U$7,$N15=U$7)),$F15,IF(M15=U$7,$F15,"")) ->  | V15: =IF(AND($E15="Y",OR($G15=V$7,$I15=V$7,$J15=V$7,$K15=V$7,$L15=V$7,$M15=V$7,$N15=V$7)),$F15,IF(N15=V$7,$F15,"")) ->  | W15: =IF(AND($E15="Y",OR($G15=W$7,$I15=W$7,$J15=W$7,$K15=W$7,$L15=W$7,$M15=W$7,$N15=W$7)),$F15,IF(O15=W$7,$F15,"")) ->  | X15: =IF(AND($E15="Y",OR($G15=X$7,$I15=X$7,$J15=X$7,$K15=X$7,$L15=X$7,$M15=X$7,$N15=X$7)),$F15,IF(P15=X$7,$F15,"")) ->  | Y15: =IF(AND($E15="Y",OR($G15=XFD$7,$I15=XFD$7,$J15=XFD$7,$K15=XFD$7,$L15=XFD$7,$M15=XFD$7,$N15=XFD$7)),$F15,IF(Q15=XFD$7,$F15,"")) ->  | Z15: =IF(AND($E15="Y",OR($G15=XFD$7,$I15=XFD$7,$J15=XFD$7,$K15=XFD$7,$L15=XFD$7,$M15=XFD$7,$N15=XFD$7)),$F15,IF(R15=XFD$7,$F15,"")) ->  | AA15: =IF(AND($E15="Y",OR($G15=AA$7,$I15=AA$7,$J15=AA$7,$K15=AA$7,$L15=AA$7,$M15=AA$7,$N15=AA$7)),$F15,IF(S15=AA$7,$F15,"")) ->  | AB15: =IF(AND($E15="Y",OR($G15=AB$7,$I15=AB$7,$J15=AB$7,$K15=AB$7,$L15=AB$7,$M15=AB$7,$N15=AB$7)),$F15,IF(T15=AB$7,$F15,"")) ->  | AC15: =IF(AND($E15="Y",OR($G15=AC$7,$I15=AC$7,$J15=AC$7,$K15=AC$7,$L15=AC$7,$M15=AC$7,$N15=AC$7)),$F15,IF(U15=AC$7,$F15,"")) ->  | AD15: =IF(AND($E15="Y",OR($G15=AD$7,$I15=AD$7,$J15=AD$7,$K15=AD$7,$L15=AD$7,$M15=AD$7,$N15=AD$7)),$F15,IF(V15=AD$7,$F15,"")) ->  | AE15: =IF(AND($E15="Y",OR($G15=AE$7,$I15=AE$7,$J15=AE$7,$K15=AE$7,$L15=AE$7,$M15=AE$7,$N15=AE$7)),$F15,IF(W15=AE$7,$F15,"")) ->  | AF15: =IF(AND($E15="Y",OR($G15=AF$7,$I15=AF$7,$J15=AF$7,$K15=AF$7,$L15=AF$7,$M15=AF$7,$N15=AF$7)),$F15,IF(X15=AF$7,$F15,"")) ->  | AG15: =IF(AND($E15="Y",OR($G15=AG$7,$I15=AG$7,$J15=AG$7,$K15=AG$7,$L15=AG$7,$M15=AG$7,$N15=AG$7)),$F15,IF(XFD15=AG$7,$F15,"")) ->  | AH15: =IF(AND($E15="Y",OR($G15=AH$7,$I15=AH$7,$J15=AH$7,$K15=AH$7,$L15=AH$7,$M15=AH$7,$N15=AH$7)),$F15,IF(XFD15=AH$7,$F15,"")) ->  | AI15: =IF(AND($E15="Y",OR($G15=AI$7,$I15=AI$7,$J15=AI$7,$K15=AI$7,$L15=AI$7,$M15=AI$7,$N15=AI$7)),$F15,IF(AA15=AI$7,$F15,"")) ->  | AJ15: =IF(AND($E15="Y",OR($G15=AJ$7,$I15=AJ$7,$J15=AJ$7,$K15=AJ$7,$L15=AJ$7,$M15=AJ$7,$N15=AJ$7)),$F15,IF(AB15=AJ$7,$F15,"")) ->  | AK15: =IF(AND($E15="Y",OR($G15=AK$7,$I15=AK$7,$J15=AK$7,$K15=AK$7,$L15=AK$7,$M15=AK$7,$N15=AK$7)),$F15,IF(AC15=AK$7,$F15,"")) ->  | AL15: =IF(AND($E15="Y",OR($G15=AL$7,$I15=AL$7,$J15=AL$7,$K15=AL$7,$L15=AL$7,$M15=AL$7,$N15=AL$7)),$F15,IF(AD15=AL$7,$F15,"")) ->  | AM15: =IF(AND($E15="Y",OR($G15=AM$7,$I15=AM$7,$J15=AM$7,$K15=AM$7,$L15=AM$7,$M15=AM$7,$N15=AM$7)),$F15,IF(AE15=AM$7,$F15,"")) ->  | AN15: =SUM(O15:AM15) -> 0 | AO15: =AN15/25 -> 0 | AP15: =IF(H15=0,0,F15/H15) -> 0
I16: =G16+$H16 -> 0 | J16: =I16+$H16 -> 0 | K16: =J16+$H16 -> 0 | L16: =K16+$H16 -> 0 | M16: =L16+$H16 -> 0 | N16: =M16+$H16 -> 0 | O16: =IF(AND($E16="Y",OR($G16=O$7,$I16=O$7,$J16=O$7,$K16=O$7,$L16=O$7,$M16=O$7,$N16=O$7)),$F16,IF(G16=O$7,$F16,"")) ->  | P16: =IF(AND($E16="Y",OR($G16=P$7,$I16=P$7,$J16=P$7,$K16=P$7,$L16=P$7,$M16=P$7,$N16=P$7)),$F16,IF(H16=P$7,$F16,"")) ->  | Q16: =IF(AND($E16="Y",OR($G16=Q$7,$I16=Q$7,$J16=Q$7,$K16=Q$7,$L16=Q$7,$M16=Q$7,$N16=Q$7)),$F16,IF(I16=Q$7,$F16,"")) ->  | R16: =IF(AND($E16="Y",OR($G16=R$7,$I16=R$7,$J16=R$7,$K16=R$7,$L16=R$7,$M16=R$7,$N16=R$7)),$F16,IF(J16=R$7,$F16,"")) ->  | S16: =IF(AND($E16="Y",OR($G16=S$7,$I16=S$7,$J16=S$7,$K16=S$7,$L16=S$7,$M16=S$7,$N16=S$7)),$F16,IF(K16=S$7,$F16,"")) ->  | T16: =IF(AND($E16="Y",OR($G16=T$7,$I16=T$7,$J16=T$7,$K16=T$7,$L16=T$7,$M16=T$7,$N16=T$7)),$F16,IF(L16=T$7,$F16,"")) ->  | U16: =IF(AND($E16="Y",OR($G16=U$7,$I16=U$7,$J16=U$7,$K16=U$7,$L16=U$7,$M16=U$7,$N16=U$7)),$F16,IF(M16=U$7,$F16,"")) ->  | V16: =IF(AND($E16="Y",OR($G16=V$7,$I16=V$7,$J16=V$7,$K16=V$7,$L16=V$7,$M16=V$7,$N16=V$7)),$F16,IF(N16=V$7,$F16,"")) ->  | W16: =IF(AND($E16="Y",OR($G16=W$7,$I16=W$7,$J16=W$7,$K16=W$7,$L16=W$7,$M16=W$7,$N16=W$7)),$F16,IF(O16=W$7,$F16,"")) ->  | X16: =IF(AND($E16="Y",OR($G16=X$7,$I16=X$7,$J16=X$7,$K16=X$7,$L16=X$7,$M16=X$7,$N16=X$7)),$F16,IF(P16=X$7,$F16,"")) ->  | Y16: =IF(AND($E16="Y",OR($G16=XFD$7,$I16=XFD$7,$J16=XFD$7,$K16=XFD$7,$L16=XFD$7,$M16=XFD$7,$N16=XFD$7)),$F16,IF(Q16=XFD$7,$F16,"")) ->  | Z16: =IF(AND($E16="Y",OR($G16=XFD$7,$I16=XFD$7,$J16=XFD$7,$K16=XFD$7,$L16=XFD$7,$M16=XFD$7,$N16=XFD$7)),$F16,IF(R16=XFD$7,$F16,"")) ->  | AA16: =IF(AND($E16="Y",OR($G16=AA$7,$I16=AA$7,$J16=AA$7,$K16=AA$7,$L16=AA$7,$M16=AA$7,$N16=AA$7)),$F16,IF(S16=AA$7,$F16,"")) ->  | AB16: =IF(AND($E16="Y",OR($G16=AB$7,$I16=AB$7,$J16=AB$7,$K16=AB$7,$L16=AB$7,$M16=AB$7,$N16=AB$7)),$F16,IF(T16=AB$7,$F16,"")) ->  | AC16: =IF(AND($E16="Y",OR($G16=AC$7,$I16=AC$7,$J16=AC$7,$K16=AC$7,$L16=AC$7,$M16=AC$7,$N16=AC$7)),$F16,IF(U16=AC$7,$F16,"")) ->  | AD16: =IF(AND($E16="Y",OR($G16=AD$7,$I16=AD$7,$J16=AD$7,$K16=AD$7,$L16=AD$7,$M16=AD$7,$N16=AD$7)),$F16,IF(V16=AD$7,$F16,"")) ->  | AE16: =IF(AND($E16="Y",OR($G16=AE$7,$I16=AE$7,$J16=AE$7,$K16=AE$7,$L16=AE$7,$M16=AE$7,$N16=AE$7)),$F16,IF(W16=AE$7,$F16,"")) ->  | AF16: =IF(AND($E16="Y",OR($G16=AF$7,$I16=AF$7,$J16=AF$7,$K16=AF$7,$L16=AF$7,$M16=AF$7,$N16=AF$7)),$F16,IF(X16=AF$7,$F16,"")) ->  | AG16: =IF(AND($E16="Y",OR($G16=AG$7,$I16=AG$7,$J16=AG$7,$K16=AG$7,$L16=AG$7,$M16=AG$7,$N16=AG$7)),$F16,IF(XFD16=AG$7,$F16,"")) ->  | AH16: =IF(AND($E16="Y",OR($G16=AH$7,$I16=AH$7,$J16=AH$7,$K16=AH$7,$L16=AH$7,$M16=AH$7,$N16=AH$7)),$F16,IF(XFD16=AH$7,$F16,"")) ->  | AI16: =IF(AND($E16="Y",OR($G16=AI$7,$I16=AI$7,$J16=AI$7,$K16=AI$7,$L16=AI$7,$M16=AI$7,$N16=AI$7)),$F16,IF(AA16=AI$7,$F16,"")) ->  | AJ16: =IF(AND($E16="Y",OR($G16=AJ$7,$I16=AJ$7,$J16=AJ$7,$K16=AJ$7,$L16=AJ$7,$M16=AJ$7,$N16=AJ$7)),$F16,IF(AB16=AJ$7,$F16,"")) ->  | AK16: =IF(AND($E16="Y",OR($G16=AK$7,$I16=AK$7,$J16=AK$7,$K16=AK$7,$L16=AK$7,$M16=AK$7,$N16=AK$7)),$F16,IF(AC16=AK$7,$F16,"")) ->  | AL16: =IF(AND($E16="Y",OR($G16=AL$7,$I16=AL$7,$J16=AL$7,$K16=AL$7,$L16=AL$7,$M16=AL$7,$N16=AL$7)),$F16,IF(AD16=AL$7,$F16,"")) ->  | AM16: =IF(AND($E16="Y",OR($G16=AM$7,$I16=AM$7,$J16=AM$7,$K16=AM$7,$L16=AM$7,$M16=AM$7,$N16=AM$7)),$F16,IF(AE16=AM$7,$F16,"")) ->  | AN16: =SUM(O16:AM16) -> 0 | AO16: =AN16/25 -> 0 | AP16: =IF(H16=0,0,F16/H16) -> 0
I17: =G17+$H17 -> 0 | J17: =I17+$H17 -> 0 | K17: =J17+$H17 -> 0 | L17: =K17+$H17 -> 0 | M17: =L17+$H17 -> 0 | N17: =M17+$H17 -> 0 | O17: =IF(AND($E17="Y",OR($G17=O$7,$I17=O$7,$J17=O$7,$K17=O$7,$L17=O$7,$M17=O$7,$N17=O$7)),$F17,IF(G17=O$7,$F17,"")) ->  | P17: =IF(AND($E17="Y",OR($G17=P$7,$I17=P$7,$J17=P$7,$K17=P$7,$L17=P$7,$M17=P$7,$N17=P$7)),$F17,IF(H17=P$7,$F17,"")) ->  | Q17: =IF(AND($E17="Y",OR($G17=Q$7,$I17=Q$7,$J17=Q$7,$K17=Q$7,$L17=Q$7,$M17=Q$7,$N17=Q$7)),$F17,IF(I17=Q$7,$F17,"")) ->  | R17: =IF(AND($E17="Y",OR($G17=R$7,$I17=R$7,$J17=R$7,$K17=R$7,$L17=R$7,$M17=R$7,$N17=R$7)),$F17,IF(J17=R$7,$F17,"")) ->  | S17: =IF(AND($E17="Y",OR($G17=S$7,$I17=S$7,$J17=S$7,$K17=S$7,$L17=S$7,$M17=S$7,$N17=S$7)),$F17,IF(K17=S$7,$F17,"")) ->  | T17: =IF(AND($E17="Y",OR($G17=T$7,$I17=T$7,$J17=T$7,$K17=T$7,$L17=T$7,$M17=T$7,$N17=T$7)),$F17,IF(L17=T$7,$F17,"")) ->  | U17: =IF(AND($E17="Y",OR($G17=U$7,$I17=U$7,$J17=U$7,$K17=U$7,$L17=U$7,$M17=U$7,$N17=U$7)),$F17,IF(M17=U$7,$F17,"")) ->  | V17: =IF(AND($E17="Y",OR($G17=V$7,$I17=V$7,$J17=V$7,$K17=V$7,$L17=V$7,$M17=V$7,$N17=V$7)),$F17,IF(N17=V$7,$F17,"")) ->  | W17: =IF(AND($E17="Y",OR($G17=W$7,$I17=W$7,$J17=W$7,$K17=W$7,$L17=W$7,$M17=W$7,$N17=W$7)),$F17,IF(O17=W$7,$F17,"")) ->  | X17: =IF(AND($E17="Y",OR($G17=X$7,$I17=X$7,$J17=X$7,$K17=X$7,$L17=X$7,$M17=X$7,$N17=X$7)),$F17,IF(P17=X$7,$F17,"")) ->  | Y17: =IF(AND($E17="Y",OR($G17=XFD$7,$I17=XFD$7,$J17=XFD$7,$K17=XFD$7,$L17=XFD$7,$M17=XFD$7,$N17=XFD$7)),$F17,IF(Q17=XFD$7,$F17,"")) ->  | Z17: =IF(AND($E17="Y",OR($G17=XFD$7,$I17=XFD$7,$J17=XFD$7,$K17=XFD$7,$L17=XFD$7,$M17=XFD$7,$N17=XFD$7)),$F17,IF(R17=XFD$7,$F17,"")) ->  | AA17: =IF(AND($E17="Y",OR($G17=AA$7,$I17=AA$7,$J17=AA$7,$K17=AA$7,$L17=AA$7,$M17=AA$7,$N17=AA$7)),$F17,IF(S17=AA$7,$F17,"")) ->  | AB17: =IF(AND($E17="Y",OR($G17=AB$7,$I17=AB$7,$J17=AB$7,$K17=AB$7,$L17=AB$7,$M17=AB$7,$N17=AB$7)),$F17,IF(T17=AB$7,$F17,"")) ->  | AC17: =IF(AND($E17="Y",OR($G17=AC$7,$I17=AC$7,$J17=AC$7,$K17=AC$7,$L17=AC$7,$M17=AC$7,$N17=AC$7)),$F17,IF(U17=AC$7,$F17,"")) ->  | AD17: =IF(AND($E17="Y",OR($G17=AD$7,$I17=AD$7,$J17=AD$7,$K17=AD$7,$L17=AD$7,$M17=AD$7,$N17=AD$7)),$F17,IF(V17=AD$7,$F17,"")) ->  | AE17: =IF(AND($E17="Y",OR($G17=AE$7,$I17=AE$7,$J17=AE$7,$K17=AE$7,$L17=AE$7,$M17=AE$7,$N17=AE$7)),$F17,IF(W17=AE$7,$F17,"")) ->  | AF17: =IF(AND($E17="Y",OR($G17=AF$7,$I17=AF$7,$J17=AF$7,$K17=AF$7,$L17=AF$7,$M17=AF$7,$N17=AF$7)),$F17,IF(X17=AF$7,$F17,"")) ->  | AG17: =IF(AND($E17="Y",OR($G17=AG$7,$I17=AG$7,$J17=AG$7,$K17=AG$7,$L17=AG$7,$M17=AG$7,$N17=AG$7)),$F17,IF(XFD17=AG$7,$F17,"")) ->  | AH17: =IF(AND($E17="Y",OR($G17=AH$7,$I17=AH$7,$J17=AH$7,$K17=AH$7,$L17=AH$7,$M17=AH$7,$N17=AH$7)),$F17,IF(XFD17=AH$7,$F17,"")) ->  | AI17: =IF(AND($E17="Y",OR($G17=AI$7,$I17=AI$7,$J17=AI$7,$K17=AI$7,$L17=AI$7,$M17=AI$7,$N17=AI$7)),$F17,IF(AA17=AI$7,$F17,"")) ->  | AJ17: =IF(AND($E17="Y",OR($G17=AJ$7,$I17=AJ$7,$J17=AJ$7,$K17=AJ$7,$L17=AJ$7,$M17=AJ$7,$N17=AJ$7)),$F17,IF(AB17=AJ$7,$F17,"")) ->  | AK17: =IF(AND($E17="Y",OR($G17=AK$7,$I17=AK$7,$J17=AK$7,$K17=AK$7,$L17=AK$7,$M17=AK$7,$N17=AK$7)),$F17,IF(AC17=AK$7,$F17,"")) ->  | AL17: =IF(AND($E17="Y",OR($G17=AL$7,$I17=AL$7,$J17=AL$7,$K17=AL$7,$L17=AL$7,$M17=AL$7,$N17=AL$7)),$F17,IF(AD17=AL$7,$F17,"")) ->  | AM17: =IF(AND($E17="Y",OR($G17=AM$7,$I17=AM$7,$J17=AM$7,$K17=AM$7,$L17=AM$7,$M17=AM$7,$N17=AM$7)),$F17,IF(AE17=AM$7,$F17,"")) ->  | AN17: =SUM(O17:AM17) -> 0 | AO17: =AN17/25 -> 0 | AP17: =IF(H17=0,0,F17/H17) -> 0
I18: =G18+$H18 -> 0 | J18: =I18+$H18 -> 0 | K18: =J18+$H18 -> 0 | L18: =K18+$H18 -> 0 | M18: =L18+$H18 -> 0 | N18: =M18+$H18 -> 0 | O18: =IF(AND($E18="Y",OR($G18=O$7,$I18=O$7,$J18=O$7,$K18=O$7,$L18=O$7,$M18=O$7,$N18=O$7)),$F18,IF(G18=O$7,$F18,"")) ->  | P18: =IF(AND($E18="Y",OR($G18=P$7,$I18=P$7,$J18=P$7,$K18=P$7,$L18=P$7,$M18=P$7,$N18=P$7)),$F18,IF(H18=P$7,$F18,"")) ->  | Q18: =IF(AND($E18="Y",OR($G18=Q$7,$I18=Q$7,$J18=Q$7,$K18=Q$7,$L18=Q$7,$M18=Q$7,$N18=Q$7)),$F18,IF(I18=Q$7,$F18,"")) ->  | R18: =IF(AND($E18="Y",OR($G18=R$7,$I18=R$7,$J18=R$7,$K18=R$7,$L18=R$7,$M18=R$7,$N18=R$7)),$F18,IF(J18=R$7,$F18,"")) ->  | S18: =IF(AND($E18="Y",OR($G18=S$7,$I18=S$7,$J18=S$7,$K18=S$7,$L18=S$7,$M18=S$7,$N18=S$7)),$F18,IF(K18=S$7,$F18,"")) ->  | T18: =IF(AND($E18="Y",OR($G18=T$7,$I18=T$7,$J18=T$7,$K18=T$7,$L18=T$7,$M18=T$7,$N18=T$7)),$F18,IF(L18=T$7,$F18,"")) ->  | U18: =IF(AND($E18="Y",OR($G18=U$7,$I18=U$7,$J18=U$7,$K18=U$7,$L18=U$7,$M18=U$7,$N18=U$7)),$F18,IF(M18=U$7,$F18,"")) ->  | V18: =IF(AND($E18="Y",OR($G18=V$7,$I18=V$7,$J18=V$7,$K18=V$7,$L18=V$7,$M18=V$7,$N18=V$7)),$F18,IF(N18=V$7,$F18,"")) ->  | W18: =IF(AND($E18="Y",OR($G18=W$7,$I18=W$7,$J18=W$7,$K18=W$7,$L18=W$7,$M18=W$7,$N18=W$7)),$F18,IF(O18=W$7,$F18,"")) ->  | X18: =IF(AND($E18="Y",OR($G18=X$7,$I18=X$7,$J18=X$7,$K18=X$7,$L18=X$7,$M18=X$7,$N18=X$7)),$F18,IF(P18=X$7,$F18,"")) ->  | Y18: =IF(AND($E18="Y",OR($G18=XFD$7,$I18=XFD$7,$J18=XFD$7,$K18=XFD$7,$L18=XFD$7,$M18=XFD$7,$N18=XFD$7)),$F18,IF(Q18=XFD$7,$F18,"")) ->  | Z18: =IF(AND($E18="Y",OR($G18=XFD$7,$I18=XFD$7,$J18=XFD$7,$K18=XFD$7,$L18=XFD$7,$M18=XFD$7,$N18=XFD$7)),$F18,IF(R18=XFD$7,$F18,"")) ->  | AA18: =IF(AND($E18="Y",OR($G18=AA$7,$I18=AA$7,$J18=AA$7,$K18=AA$7,$L18=AA$7,$M18=AA$7,$N18=AA$7)),$F18,IF(S18=AA$7,$F18,"")) ->  | AB18: =IF(AND($E18="Y",OR($G18=AB$7,$I18=AB$7,$J18=AB$7,$K18=AB$7,$L18=AB$7,$M18=AB$7,$N18=AB$7)),$F18,IF(T18=AB$7,$F18,"")) ->  | AC18: =IF(AND($E18="Y",OR($G18=AC$7,$I18=AC$7,$J18=AC$7,$K18=AC$7,$L18=AC$7,$M18=AC$7,$N18=AC$7)),$F18,IF(U18=AC$7,$F18,"")) ->  | AD18: =IF(AND($E18="Y",OR($G18=AD$7,$I18=AD$7,$J18=AD$7,$K18=AD$7,$L18=AD$7,$M18=AD$7,$N18=AD$7)),$F18,IF(V18=AD$7,$F18,"")) ->  | AE18: =IF(AND($E18="Y",OR($G18=AE$7,$I18=AE$7,$J18=AE$7,$K18=AE$7,$L18=AE$7,$M18=AE$7,$N18=AE$7)),$F18,IF(W18=AE$7,$F18,"")) ->  | AF18: =IF(AND($E18="Y",OR($G18=AF$7,$I18=AF$7,$J18=AF$7,$K18=AF$7,$L18=AF$7,$M18=AF$7,$N18=AF$7)),$F18,IF(X18=AF$7,$F18,"")) ->  | AG18: =IF(AND($E18="Y",OR($G18=AG$7,$I18=AG$7,$J18=AG$7,$K18=AG$7,$L18=AG$7,$M18=AG$7,$N18=AG$7)),$F18,IF(XFD18=AG$7,$F18,"")) ->  | AH18: =IF(AND($E18="Y",OR($G18=AH$7,$I18=AH$7,$J18=AH$7,$K18=AH$7,$L18=AH$7,$M18=AH$7,$N18=AH$7)),$F18,IF(XFD18=AH$7,$F18,"")) ->  | AI18: =IF(AND($E18="Y",OR($G18=AI$7,$I18=AI$7,$J18=AI$7,$K18=AI$7,$L18=AI$7,$M18=AI$7,$N18=AI$7)),$F18,IF(AA18=AI$7,$F18,"")) ->  | AJ18: =IF(AND($E18="Y",OR($G18=AJ$7,$I18=AJ$7,$J18=AJ$7,$K18=AJ$7,$L18=AJ$7,$M18=AJ$7,$N18=AJ$7)),$F18,IF(AB18=AJ$7,$F18,"")) ->  | AK18: =IF(AND($E18="Y",OR($G18=AK$7,$I18=AK$7,$J18=AK$7,$K18=AK$7,$L18=AK$7,$M18=AK$7,$N18=AK$7)),$F18,IF(AC18=AK$7,$F18,"")) ->  | AL18: =IF(AND($E18="Y",OR($G18=AL$7,$I18=AL$7,$J18=AL$7,$K18=AL$7,$L18=AL$7,$M18=AL$7,$N18=AL$7)),$F18,IF(AD18=AL$7,$F18,"")) ->  | AM18: =IF(AND($E18="Y",OR($G18=AM$7,$I18=AM$7,$J18=AM$7,$K18=AM$7,$L18=AM$7,$M18=AM$7,$N18=AM$7)),$F18,IF(AE18=AM$7,$F18,"")) ->  | AN18: =SUM(O18:AM18) -> 0 | AO18: =AN18/25 -> 0 | AP18: =IF(H18=0,0,F18/H18) -> 0
I19: =G19+$H19 -> 0 | J19: =I19+$H19 -> 0 | K19: =J19+$H19 -> 0 | L19: =K19+$H19 -> 0 | M19: =L19+$H19 -> 0 | N19: =M19+$H19 -> 0 | O19: =IF(AND($E19="Y",OR($G19=O$7,$I19=O$7,$J19=O$7,$K19=O$7,$L19=O$7,$M19=O$7,$N19=O$7)),$F19,IF(G19=O$7,$F19,"")) ->  | P19: =IF(AND($E19="Y",OR($G19=P$7,$I19=P$7,$J19=P$7,$K19=P$7,$L19=P$7,$M19=P$7,$N19=P$7)),$F19,IF(H19=P$7,$F19,"")) ->  | Q19: =IF(AND($E19="Y",OR($G19=Q$7,$I19=Q$7,$J19=Q$7,$K19=Q$7,$L19=Q$7,$M19=Q$7,$N19=Q$7)),$F19,IF(I19=Q$7,$F19,"")) ->  | R19: =IF(AND($E19="Y",OR($G19=R$7,$I19=R$7,$J19=R$7,$K19=R$7,$L19=R$7,$M19=R$7,$N19=R$7)),$F19,IF(J19=R$7,$F19,"")) ->  | S19: =IF(AND($E19="Y",OR($G19=S$7,$I19=S$7,$J19=S$7,$K19=S$7,$L19=S$7,$M19=S$7,$N19=S$7)),$F19,IF(K19=S$7,$F19,"")) ->  | T19: =IF(AND($E19="Y",OR($G19=T$7,$I19=T$7,$J19=T$7,$K19=T$7,$L19=T$7,$M19=T$7,$N19=T$7)),$F19,IF(L19=T$7,$F19,"")) ->  | U19: =IF(AND($E19="Y",OR($G19=U$7,$I19=U$7,$J19=U$7,$K19=U$7,$L19=U$7,$M19=U$7,$N19=U$7)),$F19,IF(M19=U$7,$F19,"")) ->  | V19: =IF(AND($E19="Y",OR($G19=V$7,$I19=V$7,$J19=V$7,$K19=V$7,$L19=V$7,$M19=V$7,$N19=V$7)),$F19,IF(N19=V$7,$F19,"")) ->  | W19: =IF(AND($E19="Y",OR($G19=W$7,$I19=W$7,$J19=W$7,$K19=W$7,$L19=W$7,$M19=W$7,$N19=W$7)),$F19,IF(O19=W$7,$F19,"")) ->  | X19: =IF(AND($E19="Y",OR($G19=X$7,$I19=X$7,$J19=X$7,$K19=X$7,$L19=X$7,$M19=X$7,$N19=X$7)),$F19,IF(P19=X$7,$F19,"")) ->  | Y19: =IF(AND($E19="Y",OR($G19=XFD$7,$I19=XFD$7,$J19=XFD$7,$K19=XFD$7,$L19=XFD$7,$M19=XFD$7,$N19=XFD$7)),$F19,IF(Q19=XFD$7,$F19,"")) ->  | Z19: =IF(AND($E19="Y",OR($G19=XFD$7,$I19=XFD$7,$J19=XFD$7,$K19=XFD$7,$L19=XFD$7,$M19=XFD$7,$N19=XFD$7)),$F19,IF(R19=XFD$7,$F19,"")) ->  | AA19: =IF(AND($E19="Y",OR($G19=AA$7,$I19=AA$7,$J19=AA$7,$K19=AA$7,$L19=AA$7,$M19=AA$7,$N19=AA$7)),$F19,IF(S19=AA$7,$F19,"")) ->  | AB19: =IF(AND($E19="Y",OR($G19=AB$7,$I19=AB$7,$J19=AB$7,$K19=AB$7,$L19=AB$7,$M19=AB$7,$N19=AB$7)),$F19,IF(T19=AB$7,$F19,"")) ->  | AC19: =IF(AND($E19="Y",OR($G19=AC$7,$I19=AC$7,$J19=AC$7,$K19=AC$7,$L19=AC$7,$M19=AC$7,$N19=AC$7)),$F19,IF(U19=AC$7,$F19,"")) ->  | AD19: =IF(AND($E19="Y",OR($G19=AD$7,$I19=AD$7,$J19=AD$7,$K19=AD$7,$L19=AD$7,$M19=AD$7,$N19=AD$7)),$F19,IF(V19=AD$7,$F19,"")) ->  | AE19: =IF(AND($E19="Y",OR($G19=AE$7,$I19=AE$7,$J19=AE$7,$K19=AE$7,$L19=AE$7,$M19=AE$7,$N19=AE$7)),$F19,IF(W19=AE$7,$F19,"")) ->  | AF19: =IF(AND($E19="Y",OR($G19=AF$7,$I19=AF$7,$J19=AF$7,$K19=AF$7,$L19=AF$7,$M19=AF$7,$N19=AF$7)),$F19,IF(X19=AF$7,$F19,"")) ->  | AG19: =IF(AND($E19="Y",OR($G19=AG$7,$I19=AG$7,$J19=AG$7,$K19=AG$7,$L19=AG$7,$M19=AG$7,$N19=AG$7)),$F19,IF(XFD19=AG$7,$F19,"")) ->  | AH19: =IF(AND($E19="Y",OR($G19=AH$7,$I19=AH$7,$J19=AH$7,$K19=AH$7,$L19=AH$7,$M19=AH$7,$N19=AH$7)),$F19,IF(XFD19=AH$7,$F19,"")) ->  | AI19: =IF(AND($E19="Y",OR($G19=AI$7,$I19=AI$7,$J19=AI$7,$K19=AI$7,$L19=AI$7,$M19=AI$7,$N19=AI$7)),$F19,IF(AA19=AI$7,$F19,"")) ->  | AJ19: =IF(AND($E19="Y",OR($G19=AJ$7,$I19=AJ$7,$J19=AJ$7,$K19=AJ$7,$L19=AJ$7,$M19=AJ$7,$N19=AJ$7)),$F19,IF(AB19=AJ$7,$F19,"")) ->  | AK19: =IF(AND($E19="Y",OR($G19=AK$7,$I19=AK$7,$J19=AK$7,$K19=AK$7,$L19=AK$7,$M19=AK$7,$N19=AK$7)),$F19,IF(AC19=AK$7,$F19,"")) ->  | AL19: =IF(AND($E19="Y",OR($G19=AL$7,$I19=AL$7,$J19=AL$7,$K19=AL$7,$L19=AL$7,$M19=AL$7,$N19=AL$7)),$F19,IF(AD19=AL$7,$F19,"")) ->  | AM19: =IF(AND($E19="Y",OR($G19=AM$7,$I19=AM$7,$J19=AM$7,$K19=AM$7,$L19=AM$7,$M19=AM$7,$N19=AM$7)),$F19,IF(AE19=AM$7,$F19,"")) ->  | AN19: =SUM(O19:AM19) -> 0 | AO19: =AN19/25 -> 0 | AP19: =IF(H19=0,0,F19/H19) -> 0
I20: =G20+$H20 -> 0 | J20: =I20+$H20 -> 0 | K20: =J20+$H20 -> 0 | L20: =K20+$H20 -> 0 | M20: =L20+$H20 -> 0 | N20: =M20+$H20 -> 0 | O20: =IF(AND($E20="Y",OR($G20=O$7,$I20=O$7,$J20=O$7,$K20=O$7,$L20=O$7,$M20=O$7,$N20=O$7)),$F20,IF(G20=O$7,$F20,"")) ->  | P20: =IF(AND($E20="Y",OR($G20=P$7,$I20=P$7,$J20=P$7,$K20=P$7,$L20=P$7,$M20=P$7,$N20=P$7)),$F20,IF(H20=P$7,$F20,"")) ->  | Q20: =IF(AND($E20="Y",OR($G20=Q$7,$I20=Q$7,$J20=Q$7,$K20=Q$7,$L20=Q$7,$M20=Q$7,$N20=Q$7)),$F20,IF(I20=Q$7,$F20,"")) ->  | R20: =IF(AND($E20="Y",OR($G20=R$7,$I20=R$7,$J20=R$7,$K20=R$7,$L20=R$7,$M20=R$7,$N20=R$7)),$F20,IF(J20=R$7,$F20,"")) ->  | S20: =IF(AND($E20="Y",OR($G20=S$7,$I20=S$7,$J20=S$7,$K20=S$7,$L20=S$7,$M20=S$7,$N20=S$7)),$F20,IF(K20=S$7,$F20,"")) ->  | T20: =IF(AND($E20="Y",OR($G20=T$7,$I20=T$7,$J20=T$7,$K20=T$7,$L20=T$7,$M20=T$7,$N20=T$7)),$F20,IF(L20=T$7,$F20,"")) ->  | U20: =IF(AND($E20="Y",OR($G20=U$7,$I20=U$7,$J20=U$7,$K20=U$7,$L20=U$7,$M20=U$7,$N20=U$7)),$F20,IF(M20=U$7,$F20,"")) ->  | V20: =IF(AND($E20="Y",OR($G20=V$7,$I20=V$7,$J20=V$7,$K20=V$7,$L20=V$7,$M20=V$7,$N20=V$7)),$F20,IF(N20=V$7,$F20,"")) ->  | W20: =IF(AND($E20="Y",OR($G20=W$7,$I20=W$7,$J20=W$7,$K20=W$7,$L20=W$7,$M20=W$7,$N20=W$7)),$F20,IF(O20=W$7,$F20,"")) ->  | X20: =IF(AND($E20="Y",OR($G20=X$7,$I20=X$7,$J20=X$7,$K20=X$7,$L20=X$7,$M20=X$7,$N20=X$7)),$F20,IF(P20=X$7,$F20,"")) ->  | Y20: =IF(AND($E20="Y",OR($G20=XFD$7,$I20=XFD$7,$J20=XFD$7,$K20=XFD$7,$L20=XFD$7,$M20=XFD$7,$N20=XFD$7)),$F20,IF(Q20=XFD$7,$F20,"")) ->  | Z20: =IF(AND($E20="Y",OR($G20=XFD$7,$I20=XFD$7,$J20=XFD$7,$K20=XFD$7,$L20=XFD$7,$M20=XFD$7,$N20=XFD$7)),$F20,IF(R20=XFD$7,$F20,"")) ->  | AA20: =IF(AND($E20="Y",OR($G20=AA$7,$I20=AA$7,$J20=AA$7,$K20=AA$7,$L20=AA$7,$M20=AA$7,$N20=AA$7)),$F20,IF(S20=AA$7,$F20,"")) ->  | AB20: =IF(AND($E20="Y",OR($G20=AB$7,$I20=AB$7,$J20=AB$7,$K20=AB$7,$L20=AB$7,$M20=AB$7,$N20=AB$7)),$F20,IF(T20=AB$7,$F20,"")) ->  | AC20: =IF(AND($E20="Y",OR($G20=AC$7,$I20=AC$7,$J20=AC$7,$K20=AC$7,$L20=AC$7,$M20=AC$7,$N20=AC$7)),$F20,IF(U20=AC$7,$F20,"")) ->  | AD20: =IF(AND($E20="Y",OR($G20=AD$7,$I20=AD$7,$J20=AD$7,$K20=AD$7,$L20=AD$7,$M20=AD$7,$N20=AD$7)),$F20,IF(V20=AD$7,$F20,"")) ->  | AE20: =IF(AND($E20="Y",OR($G20=AE$7,$I20=AE$7,$J20=AE$7,$K20=AE$7,$L20=AE$7,$M20=AE$7,$N20=AE$7)),$F20,IF(W20=AE$7,$F20,"")) ->  | AF20: =IF(AND($E20="Y",OR($G20=AF$7,$I20=AF$7,$J20=AF$7,$K20=AF$7,$L20=AF$7,$M20=AF$7,$N20=AF$7)),$F20,IF(X20=AF$7,$F20,"")) ->  | AG20: =IF(AND($E20="Y",OR($G20=AG$7,$I20=AG$7,$J20=AG$7,$K20=AG$7,$L20=AG$7,$M20=AG$7,$N20=AG$7)),$F20,IF(XFD20=AG$7,$F20,"")) ->  | AH20: =IF(AND($E20="Y",OR($G20=AH$7,$I20=AH$7,$J20=AH$7,$K20=AH$7,$L20=AH$7,$M20=AH$7,$N20=AH$7)),$F20,IF(XFD20=AH$7,$F20,"")) ->  | AI20: =IF(AND($E20="Y",OR($G20=AI$7,$I20=AI$7,$J20=AI$7,$K20=AI$7,$L20=AI$7,$M20=AI$7,$N20=AI$7)),$F20,IF(AA20=AI$7,$F20,"")) ->  | AJ20: =IF(AND($E20="Y",OR($G20=AJ$7,$I20=AJ$7,$J20=AJ$7,$K20=AJ$7,$L20=AJ$7,$M20=AJ$7,$N20=AJ$7)),$F20,IF(AB20=AJ$7,$F20,"")) ->  | AK20: =IF(AND($E20="Y",OR($G20=AK$7,$I20=AK$7,$J20=AK$7,$K20=AK$7,$L20=AK$7,$M20=AK$7,$N20=AK$7)),$F20,IF(AC20=AK$7,$F20,"")) ->  | AL20: =IF(AND($E20="Y",OR($G20=AL$7,$I20=AL$7,$J20=AL$7,$K20=AL$7,$L20=AL$7,$M20=AL$7,$N20=AL$7)),$F20,IF(AD20=AL$7,$F20,"")) ->  | AM20: =IF(AND($E20="Y",OR($G20=AM$7,$I20=AM$7,$J20=AM$7,$K20=AM$7,$L20=AM$7,$M20=AM$7,$N20=AM$7)),$F20,IF(AE20=AM$7,$F20,"")) ->  | AN20: =SUM(O20:AM20) -> 0 | AO20: =AN20/25 -> 0 | AP20: =IF(H20=0,0,F20/H20) -> 0
I21: =G21+$H21 -> 0 | J21: =I21+$H21 -> 0 | K21: =J21+$H21 -> 0 | L21: =K21+$H21 -> 0 | M21: =L21+$H21 -> 0 | N21: =M21+$H21 -> 0 | O21: =IF(AND($E21="Y",OR($G21=O$7,$I21=O$7,$J21=O$7,$K21=O$7,$L21=O$7,$M21=O$7,$N21=O$7)),$F21,IF(G21=O$7,$F21,"")) ->  | P21: =IF(AND($E21="Y",OR($G21=P$7,$I21=P$7,$J21=P$7,$K21=P$7,$L21=P$7,$M21=P$7,$N21=P$7)),$F21,IF(H21=P$7,$F21,"")) ->  | Q21: =IF(AND($E21="Y",OR($G21=Q$7,$I21=Q$7,$J21=Q$7,$K21=Q$7,$L21=Q$7,$M21=Q$7,$N21=Q$7)),$F21,IF(I21=Q$7,$F21,"")) ->  | R21: =IF(AND($E21="Y",OR($G21=R$7,$I21=R$7,$J21=R$7,$K21=R$7,$L21=R$7,$M21=R$7,$N21=R$7)),$F21,IF(J21=R$7,$F21,"")) ->  | S21: =IF(AND($E21="Y",OR($G21=S$7,$I21=S$7,$J21=S$7,$K21=S$7,$L21=S$7,$M21=S$7,$N21=S$7)),$F21,IF(K21=S$7,$F21,"")) ->  | T21: =IF(AND($E21="Y",OR($G21=T$7,$I21=T$7,$J21=T$7,$K21=T$7,$L21=T$7,$M21=T$7,$N21=T$7)),$F21,IF(L21=T$7,$F21,"")) ->  | U21: =IF(AND($E21="Y",OR($G21=U$7,$I21=U$7,$J21=U$7,$K21=U$7,$L21=U$7,$M21=U$7,$N21=U$7)),$F21,IF(M21=U$7,$F21,"")) ->  | V21: =IF(AND($E21="Y",OR($G21=V$7,$I21=V$7,$J21=V$7,$K21=V$7,$L21=V$7,$M21=V$7,$N21=V$7)),$F21,IF(N21=V$7,$F21,"")) ->  | W21: =IF(AND($E21="Y",OR($G21=W$7,$I21=W$7,$J21=W$7,$K21=W$7,$L21=W$7,$M21=W$7,$N21=W$7)),$F21,IF(O21=W$7,$F21,"")) ->  | X21: =IF(AND($E21="Y",OR($G21=X$7,$I21=X$7,$J21=X$7,$K21=X$7,$L21=X$7,$M21=X$7,$N21=X$7)),$F21,IF(P21=X$7,$F21,"")) ->  | Y21: =IF(AND($E21="Y",OR($G21=XFD$7,$I21=XFD$7,$J21=XFD$7,$K21=XFD$7,$L21=XFD$7,$M21=XFD$7,$N21=XFD$7)),$F21,IF(Q21=XFD$7,$F21,"")) ->  | Z21: =IF(AND($E21="Y",OR($G21=XFD$7,$I21=XFD$7,$J21=XFD$7,$K21=XFD$7,$L21=XFD$7,$M21=XFD$7,$N21=XFD$7)),$F21,IF(R21=XFD$7,$F21,"")) ->  | AA21: =IF(AND($E21="Y",OR($G21=AA$7,$I21=AA$7,$J21=AA$7,$K21=AA$7,$L21=AA$7,$M21=AA$7,$N21=AA$7)),$F21,IF(S21=AA$7,$F21,"")) ->  | AB21: =IF(AND($E21="Y",OR($G21=AB$7,$I21=AB$7,$J21=AB$7,$K21=AB$7,$L21=AB$7,$M21=AB$7,$N21=AB$7)),$F21,IF(T21=AB$7,$F21,"")) ->  | AC21: =IF(AND($E21="Y",OR($G21=AC$7,$I21=AC$7,$J21=AC$7,$K21=AC$7,$L21=AC$7,$M21=AC$7,$N21=AC$7)),$F21,IF(U21=AC$7,$F21,"")) ->  | AD21: =IF(AND($E21="Y",OR($G21=AD$7,$I21=AD$7,$J21=AD$7,$K21=AD$7,$L21=AD$7,$M21=AD$7,$N21=AD$7)),$F21,IF(V21=AD$7,$F21,"")) ->  | AE21: =IF(AND($E21="Y",OR($G21=AE$7,$I21=AE$7,$J21=AE$7,$K21=AE$7,$L21=AE$7,$M21=AE$7,$N21=AE$7)),$F21,IF(W21=AE$7,$F21,"")) ->  | AF21: =IF(AND($E21="Y",OR($G21=AF$7,$I21=AF$7,$J21=AF$7,$K21=AF$7,$L21=AF$7,$M21=AF$7,$N21=AF$7)),$F21,IF(X21=AF$7,$F21,"")) ->  | AG21: =IF(AND($E21="Y",OR($G21=AG$7,$I21=AG$7,$J21=AG$7,$K21=AG$7,$L21=AG$7,$M21=AG$7,$N21=AG$7)),$F21,IF(XFD21=AG$7,$F21,"")) ->  | AH21: =IF(AND($E21="Y",OR($G21=AH$7,$I21=AH$7,$J21=AH$7,$K21=AH$7,$L21=AH$7,$M21=AH$7,$N21=AH$7)),$F21,IF(XFD21=AH$7,$F21,"")) ->  | AI21: =IF(AND($E21="Y",OR($G21=AI$7,$I21=AI$7,$J21=AI$7,$K21=AI$7,$L21=AI$7,$M21=AI$7,$N21=AI$7)),$F21,IF(AA21=AI$7,$F21,"")) ->  | AJ21: =IF(AND($E21="Y",OR($G21=AJ$7,$I21=AJ$7,$J21=AJ$7,$K21=AJ$7,$L21=AJ$7,$M21=AJ$7,$N21=AJ$7)),$F21,IF(AB21=AJ$7,$F21,"")) ->  | AK21: =IF(AND($E21="Y",OR($G21=AK$7,$I21=AK$7,$J21=AK$7,$K21=AK$7,$L21=AK$7,$M21=AK$7,$N21=AK$7)),$F21,IF(AC21=AK$7,$F21,"")) ->  | AL21: =IF(AND($E21="Y",OR($G21=AL$7,$I21=AL$7,$J21=AL$7,$K21=AL$7,$L21=AL$7,$M21=AL$7,$N21=AL$7)),$F21,IF(AD21=AL$7,$F21,"")) ->  | AM21: =IF(AND($E21="Y",OR($G21=AM$7,$I21=AM$7,$J21=AM$7,$K21=AM$7,$L21=AM$7,$M21=AM$7,$N21=AM$7)),$F21,IF(AE21=AM$7,$F21,"")) ->  | AN21: =SUM(O21:AM21) -> 0 | AO21: =AN21/25 -> 0 | AP21: =IF(H21=0,0,F21/H21) -> 0
I22: =G22+$H22 -> 0 | J22: =I22+$H22 -> 0 | K22: =J22+$H22 -> 0 | L22: =K22+$H22 -> 0 | M22: =L22+$H22 -> 0 | N22: =M22+$H22 -> 0 | O22: =IF(AND($E22="Y",OR($G22=O$7,$I22=O$7,$J22=O$7,$K22=O$7,$L22=O$7,$M22=O$7,$N22=O$7)),$F22,IF(G22=O$7,$F22,"")) ->  | P22: =IF(AND($E22="Y",OR($G22=P$7,$I22=P$7,$J22=P$7,$K22=P$7,$L22=P$7,$M22=P$7,$N22=P$7)),$F22,IF(H22=P$7,$F22,"")) ->  | Q22: =IF(AND($E22="Y",OR($G22=Q$7,$I22=Q$7,$J22=Q$7,$K22=Q$7,$L22=Q$7,$M22=Q$7,$N22=Q$7)),$F22,IF(I22=Q$7,$F22,"")) ->  | R22: =IF(AND($E22="Y",OR($G22=R$7,$I22=R$7,$J22=R$7,$K22=R$7,$L22=R$7,$M22=R$7,$N22=R$7)),$F22,IF(J22=R$7,$F22,"")) ->  | S22: =IF(AND($E22="Y",OR($G22=S$7,$I22=S$7,$J22=S$7,$K22=S$7,$L22=S$7,$M22=S$7,$N22=S$7)),$F22,IF(K22=S$7,$F22,"")) ->  | T22: =IF(AND($E22="Y",OR($G22=T$7,$I22=T$7,$J22=T$7,$K22=T$7,$L22=T$7,$M22=T$7,$N22=T$7)),$F22,IF(L22=T$7,$F22,"")) ->  | U22: =IF(AND($E22="Y",OR($G22=U$7,$I22=U$7,$J22=U$7,$K22=U$7,$L22=U$7,$M22=U$7,$N22=U$7)),$F22,IF(M22=U$7,$F22,"")) ->  | V22: =IF(AND($E22="Y",OR($G22=V$7,$I22=V$7,$J22=V$7,$K22=V$7,$L22=V$7,$M22=V$7,$N22=V$7)),$F22,IF(N22=V$7,$F22,"")) ->  | W22: =IF(AND($E22="Y",OR($G22=W$7,$I22=W$7,$J22=W$7,$K22=W$7,$L22=W$7,$M22=W$7,$N22=W$7)),$F22,IF(O22=W$7,$F22,"")) ->  | X22: =IF(AND($E22="Y",OR($G22=X$7,$I22=X$7,$J22=X$7,$K22=X$7,$L22=X$7,$M22=X$7,$N22=X$7)),$F22,IF(P22=X$7,$F22,"")) ->  | Y22: =IF(AND($E22="Y",OR($G22=XFD$7,$I22=XFD$7,$J22=XFD$7,$K22=XFD$7,$L22=XFD$7,$M22=XFD$7,$N22=XFD$7)),$F22,IF(Q22=XFD$7,$F22,"")) ->  | Z22: =IF(AND($E22="Y",OR($G22=XFD$7,$I22=XFD$7,$J22=XFD$7,$K22=XFD$7,$L22=XFD$7,$M22=XFD$7,$N22=XFD$7)),$F22,IF(R22=XFD$7,$F22,"")) ->  | AA22: =IF(AND($E22="Y",OR($G22=AA$7,$I22=AA$7,$J22=AA$7,$K22=AA$7,$L22=AA$7,$M22=AA$7,$N22=AA$7)),$F22,IF(S22=AA$7,$F22,"")) ->  | AB22: =IF(AND($E22="Y",OR($G22=AB$7,$I22=AB$7,$J22=AB$7,$K22=AB$7,$L22=AB$7,$M22=AB$7,$N22=AB$7)),$F22,IF(T22=AB$7,$F22,"")) ->  | AC22: =IF(AND($E22="Y",OR($G22=AC$7,$I22=AC$7,$J22=AC$7,$K22=AC$7,$L22=AC$7,$M22=AC$7,$N22=AC$7)),$F22,IF(U22=AC$7,$F22,"")) ->  | AD22: =IF(AND($E22="Y",OR($G22=AD$7,$I22=AD$7,$J22=AD$7,$K22=AD$7,$L22=AD$7,$M22=AD$7,$N22=AD$7)),$F22,IF(V22=AD$7,$F22,"")) ->  | AE22: =IF(AND($E22="Y",OR($G22=AE$7,$I22=AE$7,$J22=AE$7,$K22=AE$7,$L22=AE$7,$M22=AE$7,$N22=AE$7)),$F22,IF(W22=AE$7,$F22,"")) ->  | AF22: =IF(AND($E22="Y",OR($G22=AF$7,$I22=AF$7,$J22=AF$7,$K22=AF$7,$L22=AF$7,$M22=AF$7,$N22=AF$7)),$F22,IF(X22=AF$7,$F22,"")) ->  | AG22: =IF(AND($E22="Y",OR($G22=AG$7,$I22=AG$7,$J22=AG$7,$K22=AG$7,$L22=AG$7,$M22=AG$7,$N22=AG$7)),$F22,IF(XFD22=AG$7,$F22,"")) ->  | AH22: =IF(AND($E22="Y",OR($G22=AH$7,$I22=AH$7,$J22=AH$7,$K22=AH$7,$L22=AH$7,$M22=AH$7,$N22=AH$7)),$F22,IF(XFD22=AH$7,$F22,"")) ->  | AI22: =IF(AND($E22="Y",OR($G22=AI$7,$I22=AI$7,$J22=AI$7,$K22=AI$7,$L22=AI$7,$M22=AI$7,$N22=AI$7)),$F22,IF(AA22=AI$7,$F22,"")) ->  | AJ22: =IF(AND($E22="Y",OR($G22=AJ$7,$I22=AJ$7,$J22=AJ$7,$K22=AJ$7,$L22=AJ$7,$M22=AJ$7,$N22=AJ$7)),$F22,IF(AB22=AJ$7,$F22,"")) ->  | AK22: =IF(AND($E22="Y",OR($G22=AK$7,$I22=AK$7,$J22=AK$7,$K22=AK$7,$L22=AK$7,$M22=AK$7,$N22=AK$7)),$F22,IF(AC22=AK$7,$F22,"")) ->  | AL22: =IF(AND($E22="Y",OR($G22=AL$7,$I22=AL$7,$J22=AL$7,$K22=AL$7,$L22=AL$7,$M22=AL$7,$N22=AL$7)),$F22,IF(AD22=AL$7,$F22,"")) ->  | AM22: =IF(AND($E22="Y",OR($G22=AM$7,$I22=AM$7,$J22=AM$7,$K22=AM$7,$L22=AM$7,$M22=AM$7,$N22=AM$7)),$F22,IF(AE22=AM$7,$F22,"")) ->  | AN22: =SUM(O22:AM22) -> 0 | AO22: =AN22/25 -> 0 | AP22: =IF(H22=0,0,F22/H22) -> 0
I23: =G23+$H23 -> 0 | J23: =I23+$H23 -> 0 | K23: =J23+$H23 -> 0 | L23: =K23+$H23 -> 0 | M23: =L23+$H23 -> 0 | N23: =M23+$H23 -> 0 | O23: =IF(AND($E23="Y",OR($G23=O$7,$I23=O$7,$J23=O$7,$K23=O$7,$L23=O$7,$M23=O$7,$N23=O$7)),$F23,IF(G23=O$7,$F23,"")) ->  | P23: =IF(AND($E23="Y",OR($G23=P$7,$I23=P$7,$J23=P$7,$K23=P$7,$L23=P$7,$M23=P$7,$N23=P$7)),$F23,IF(H23=P$7,$F23,"")) ->  | Q23: =IF(AND($E23="Y",OR($G23=Q$7,$I23=Q$7,$J23=Q$7,$K23=Q$7,$L23=Q$7,$M23=Q$7,$N23=Q$7)),$F23,IF(I23=Q$7,$F23,"")) ->  | R23: =IF(AND($E23="Y",OR($G23=R$7,$I23=R$7,$J23=R$7,$K23=R$7,$L23=R$7,$M23=R$7,$N23=R$7)),$F23,IF(J23=R$7,$F23,"")) ->  | S23: =IF(AND($E23="Y",OR($G23=S$7,$I23=S$7,$J23=S$7,$K23=S$7,$L23=S$7,$M23=S$7,$N23=S$7)),$F23,IF(K23=S$7,$F23,"")) ->  | T23: =IF(AND($E23="Y",OR($G23=T$7,$I23=T$7,$J23=T$7,$K23=T$7,$L23=T$7,$M23=T$7,$N23=T$7)),$F23,IF(L23=T$7,$F23,"")) ->  | U23: =IF(AND($E23="Y",OR($G23=U$7,$I23=U$7,$J23=U$7,$K23=U$7,$L23=U$7,$M23=U$7,$N23=U$7)),$F23,IF(M23=U$7,$F23,"")) ->  | V23: =IF(AND($E23="Y",OR($G23=V$7,$I23=V$7,$J23=V$7,$K23=V$7,$L23=V$7,$M23=V$7,$N23=V$7)),$F23,IF(N23=V$7,$F23,"")) ->  | W23: =IF(AND($E23="Y",OR($G23=W$7,$I23=W$7,$J23=W$7,$K23=W$7,$L23=W$7,$M23=W$7,$N23=W$7)),$F23,IF(O23=W$7,$F23,"")) ->  | X23: =IF(AND($E23="Y",OR($G23=X$7,$I23=X$7,$J23=X$7,$K23=X$7,$L23=X$7,$M23=X$7,$N23=X$7)),$F23,IF(P23=X$7,$F23,"")) ->  | Y23: =IF(AND($E23="Y",OR($G23=XFD$7,$I23=XFD$7,$J23=XFD$7,$K23=XFD$7,$L23=XFD$7,$M23=XFD$7,$N23=XFD$7)),$F23,IF(Q23=XFD$7,$F23,"")) ->  | Z23: =IF(AND($E23="Y",OR($G23=XFD$7,$I23=XFD$7,$J23=XFD$7,$K23=XFD$7,$L23=XFD$7,$M23=XFD$7,$N23=XFD$7)),$F23,IF(R23=XFD$7,$F23,"")) ->  | AA23: =IF(AND($E23="Y",OR($G23=AA$7,$I23=AA$7,$J23=AA$7,$K23=AA$7,$L23=AA$7,$M23=AA$7,$N23=AA$7)),$F23,IF(S23=AA$7,$F23,"")) ->  | AB23: =IF(AND($E23="Y",OR($G23=AB$7,$I23=AB$7,$J23=AB$7,$K23=AB$7,$L23=AB$7,$M23=AB$7,$N23=AB$7)),$F23,IF(T23=AB$7,$F23,"")) ->  | AC23: =IF(AND($E23="Y",OR($G23=AC$7,$I23=AC$7,$J23=AC$7,$K23=AC$7,$L23=AC$7,$M23=AC$7,$N23=AC$7)),$F23,IF(U23=AC$7,$F23,"")) ->  | AD23: =IF(AND($E23="Y",OR($G23=AD$7,$I23=AD$7,$J23=AD$7,$K23=AD$7,$L23=AD$7,$M23=AD$7,$N23=AD$7)),$F23,IF(V23=AD$7,$F23,"")) ->  | AE23: =IF(AND($E23="Y",OR($G23=AE$7,$I23=AE$7,$J23=AE$7,$K23=AE$7,$L23=AE$7,$M23=AE$7,$N23=AE$7)),$F23,IF(W23=AE$7,$F23,"")) ->  | AF23: =IF(AND($E23="Y",OR($G23=AF$7,$I23=AF$7,$J23=AF$7,$K23=AF$7,$L23=AF$7,$M23=AF$7,$N23=AF$7)),$F23,IF(X23=AF$7,$F23,"")) ->  | AG23: =IF(AND($E23="Y",OR($G23=AG$7,$I23=AG$7,$J23=AG$7,$K23=AG$7,$L23=AG$7,$M23=AG$7,$N23=AG$7)),$F23,IF(XFD23=AG$7,$F23,"")) ->  | AH23: =IF(AND($E23="Y",OR($G23=AH$7,$I23=AH$7,$J23=AH$7,$K23=AH$7,$L23=AH$7,$M23=AH$7,$N23=AH$7)),$F23,IF(XFD23=AH$7,$F23,"")) ->  | AI23: =IF(AND($E23="Y",OR($G23=AI$7,$I23=AI$7,$J23=AI$7,$K23=AI$7,$L23=AI$7,$M23=AI$7,$N23=AI$7)),$F23,IF(AA23=AI$7,$F23,"")) ->  | AJ23: =IF(AND($E23="Y",OR($G23=AJ$7,$I23=AJ$7,$J23=AJ$7,$K23=AJ$7,$L23=AJ$7,$M23=AJ$7,$N23=AJ$7)),$F23,IF(AB23=AJ$7,$F23,"")) ->  | AK23: =IF(AND($E23="Y",OR($G23=AK$7,$I23=AK$7,$J23=AK$7,$K23=AK$7,$L23=AK$7,$M23=AK$7,$N23=AK$7)),$F23,IF(AC23=AK$7,$F23,"")) ->  | AL23: =IF(AND($E23="Y",OR($G23=AL$7,$I23=AL$7,$J23=AL$7,$K23=AL$7,$L23=AL$7,$M23=AL$7,$N23=AL$7)),$F23,IF(AD23=AL$7,$F23,"")) ->  | AM23: =IF(AND($E23="Y",OR($G23=AM$7,$I23=AM$7,$J23=AM$7,$K23=AM$7,$L23=AM$7,$M23=AM$7,$N23=AM$7)),$F23,IF(AE23=AM$7,$F23,"")) ->  | AN23: =SUM(O23:AM23) -> 0 | AO23: =AN23/25 -> 0 | AP23: =IF(H23=0,0,F23/H23) -> 0
I24: =G24+$H24 -> 0 | J24: =I24+$H24 -> 0 | K24: =J24+$H24 -> 0 | L24: =K24+$H24 -> 0 | M24: =L24+$H24 -> 0 | N24: =M24+$H24 -> 0 | O24: =IF(AND($E24="Y",OR($G24=O$7,$I24=O$7,$J24=O$7,$K24=O$7,$L24=O$7,$M24=O$7,$N24=O$7)),$F24,IF(G24=O$7,$F24,"")) ->  | P24: =IF(AND($E24="Y",OR($G24=P$7,$I24=P$7,$J24=P$7,$K24=P$7,$L24=P$7,$M24=P$7,$N24=P$7)),$F24,IF(H24=P$7,$F24,"")) ->  | Q24: =IF(AND($E24="Y",OR($G24=Q$7,$I24=Q$7,$J24=Q$7,$K24=Q$7,$L24=Q$7,$M24=Q$7,$N24=Q$7)),$F24,IF(I24=Q$7,$F24,"")) ->  | R24: =IF(AND($E24="Y",OR($G24=R$7,$I24=R$7,$J24=R$7,$K24=R$7,$L24=R$7,$M24=R$7,$N24=R$7)),$F24,IF(J24=R$7,$F24,"")) ->  | S24: =IF(AND($E24="Y",OR($G24=S$7,$I24=S$7,$J24=S$7,$K24=S$7,$L24=S$7,$M24=S$7,$N24=S$7)),$F24,IF(K24=S$7,$F24,"")) ->  | T24: =IF(AND($E24="Y",OR($G24=T$7,$I24=T$7,$J24=T$7,$K24=T$7,$L24=T$7,$M24=T$7,$N24=T$7)),$F24,IF(L24=T$7,$F24,"")) ->  | U24: =IF(AND($E24="Y",OR($G24=U$7,$I24=U$7,$J24=U$7,$K24=U$7,$L24=U$7,$M24=U$7,$N24=U$7)),$F24,IF(M24=U$7,$F24,"")) ->  | V24: =IF(AND($E24="Y",OR($G24=V$7,$I24=V$7,$J24=V$7,$K24=V$7,$L24=V$7,$M24=V$7,$N24=V$7)),$F24,IF(N24=V$7,$F24,"")) ->  | W24: =IF(AND($E24="Y",OR($G24=W$7,$I24=W$7,$J24=W$7,$K24=W$7,$L24=W$7,$M24=W$7,$N24=W$7)),$F24,IF(O24=W$7,$F24,"")) ->  | X24: =IF(AND($E24="Y",OR($G24=X$7,$I24=X$7,$J24=X$7,$K24=X$7,$L24=X$7,$M24=X$7,$N24=X$7)),$F24,IF(P24=X$7,$F24,"")) ->  | Y24: =IF(AND($E24="Y",OR($G24=XFD$7,$I24=XFD$7,$J24=XFD$7,$K24=XFD$7,$L24=XFD$7,$M24=XFD$7,$N24=XFD$7)),$F24,IF(Q24=XFD$7,$F24,"")) ->  | Z24: =IF(AND($E24="Y",OR($G24=XFD$7,$I24=XFD$7,$J24=XFD$7,$K24=XFD$7,$L24=XFD$7,$M24=XFD$7,$N24=XFD$7)),$F24,IF(R24=XFD$7,$F24,"")) ->  | AA24: =IF(AND($E24="Y",OR($G24=AA$7,$I24=AA$7,$J24=AA$7,$K24=AA$7,$L24=AA$7,$M24=AA$7,$N24=AA$7)),$F24,IF(S24=AA$7,$F24,"")) ->  | AB24: =IF(AND($E24="Y",OR($G24=AB$7,$I24=AB$7,$J24=AB$7,$K24=AB$7,$L24=AB$7,$M24=AB$7,$N24=AB$7)),$F24,IF(T24=AB$7,$F24,"")) ->  | AC24: =IF(AND($E24="Y",OR($G24=AC$7,$I24=AC$7,$J24=AC$7,$K24=AC$7,$L24=AC$7,$M24=AC$7,$N24=AC$7)),$F24,IF(U24=AC$7,$F24,"")) ->  | AD24: =IF(AND($E24="Y",OR($G24=AD$7,$I24=AD$7,$J24=AD$7,$K24=AD$7,$L24=AD$7,$M24=AD$7,$N24=AD$7)),$F24,IF(V24=AD$7,$F24,"")) ->  | AE24: =IF(AND($E24="Y",OR($G24=AE$7,$I24=AE$7,$J24=AE$7,$K24=AE$7,$L24=AE$7,$M24=AE$7,$N24=AE$7)),$F24,IF(W24=AE$7,$F24,"")) ->  | AF24: =IF(AND($E24="Y",OR($G24=AF$7,$I24=AF$7,$J24=AF$7,$K24=AF$7,$L24=AF$7,$M24=AF$7,$N24=AF$7)),$F24,IF(X24=AF$7,$F24,"")) ->  | AG24: =IF(AND($E24="Y",OR($G24=AG$7,$I24=AG$7,$J24=AG$7,$K24=AG$7,$L24=AG$7,$M24=AG$7,$N24=AG$7)),$F24,IF(XFD24=AG$7,$F24,"")) ->  | AH24: =IF(AND($E24="Y",OR($G24=AH$7,$I24=AH$7,$J24=AH$7,$K24=AH$7,$L24=AH$7,$M24=AH$7,$N24=AH$7)),$F24,IF(XFD24=AH$7,$F24,"")) ->  | AI24: =IF(AND($E24="Y",OR($G24=AI$7,$I24=AI$7,$J24=AI$7,$K24=AI$7,$L24=AI$7,$M24=AI$7,$N24=AI$7)),$F24,IF(AA24=AI$7,$F24,"")) ->  | AJ24: =IF(AND($E24="Y",OR($G24=AJ$7,$I24=AJ$7,$J24=AJ$7,$K24=AJ$7,$L24=AJ$7,$M24=AJ$7,$N24=AJ$7)),$F24,IF(AB24=AJ$7,$F24,"")) ->  | AK24: =IF(AND($E24="Y",OR($G24=AK$7,$I24=AK$7,$J24=AK$7,$K24=AK$7,$L24=AK$7,$M24=AK$7,$N24=AK$7)),$F24,IF(AC24=AK$7,$F24,"")) ->  | AL24: =IF(AND($E24="Y",OR($G24=AL$7,$I24=AL$7,$J24=AL$7,$K24=AL$7,$L24=AL$7,$M24=AL$7,$N24=AL$7)),$F24,IF(AD24=AL$7,$F24,"")) ->  | AM24: =IF(AND($E24="Y",OR($G24=AM$7,$I24=AM$7,$J24=AM$7,$K24=AM$7,$L24=AM$7,$M24=AM$7,$N24=AM$7)),$F24,IF(AE24=AM$7,$F24,"")) ->  | AN24: =SUM(O24:AM24) -> 0 | AO24: =AN24/25 -> 0 | AP24: =IF(H24=0,0,F24/H24) -> 0
I25: =G25+$H25 -> 0 | J25: =I25+$H25 -> 0 | K25: =J25+$H25 -> 0 | L25: =K25+$H25 -> 0 | M25: =L25+$H25 -> 0 | N25: =M25+$H25 -> 0 | O25: =IF(AND($E25="Y",OR($G25=O$7,$I25=O$7,$J25=O$7,$K25=O$7,$L25=O$7,$M25=O$7,$N25=O$7)),$F25,IF(G25=O$7,$F25,"")) ->  | P25: =IF(AND($E25="Y",OR($G25=P$7,$I25=P$7,$J25=P$7,$K25=P$7,$L25=P$7,$M25=P$7,$N25=P$7)),$F25,IF(H25=P$7,$F25,"")) ->  | Q25: =IF(AND($E25="Y",OR($G25=Q$7,$I25=Q$7,$J25=Q$7,$K25=Q$7,$L25=Q$7,$M25=Q$7,$N25=Q$7)),$F25,IF(I25=Q$7,$F25,"")) ->  | R25: =IF(AND($E25="Y",OR($G25=R$7,$I25=R$7,$J25=R$7,$K25=R$7,$L25=R$7,$M25=R$7,$N25=R$7)),$F25,IF(J25=R$7,$F25,"")) ->  | S25: =IF(AND($E25="Y",OR($G25=S$7,$I25=S$7,$J25=S$7,$K25=S$7,$L25=S$7,$M25=S$7,$N25=S$7)),$F25,IF(K25=S$7,$F25,"")) ->  | T25: =IF(AND($E25="Y",OR($G25=T$7,$I25=T$7,$J25=T$7,$K25=T$7,$L25=T$7,$M25=T$7,$N25=T$7)),$F25,IF(L25=T$7,$F25,"")) ->  | U25: =IF(AND($E25="Y",OR($G25=U$7,$I25=U$7,$J25=U$7,$K25=U$7,$L25=U$7,$M25=U$7,$N25=U$7)),$F25,IF(M25=U$7,$F25,"")) ->  | V25: =IF(AND($E25="Y",OR($G25=V$7,$I25=V$7,$J25=V$7,$K25=V$7,$L25=V$7,$M25=V$7,$N25=V$7)),$F25,IF(N25=V$7,$F25,"")) ->  | W25: =IF(AND($E25="Y",OR($G25=W$7,$I25=W$7,$J25=W$7,$K25=W$7,$L25=W$7,$M25=W$7,$N25=W$7)),$F25,IF(O25=W$7,$F25,"")) ->  | X25: =IF(AND($E25="Y",OR($G25=X$7,$I25=X$7,$J25=X$7,$K25=X$7,$L25=X$7,$M25=X$7,$N25=X$7)),$F25,IF(P25=X$7,$F25,"")) ->  | Y25: =IF(AND($E25="Y",OR($G25=XFD$7,$I25=XFD$7,$J25=XFD$7,$K25=XFD$7,$L25=XFD$7,$M25=XFD$7,$N25=XFD$7)),$F25,IF(Q25=XFD$7,$F25,"")) ->  | Z25: =IF(AND($E25="Y",OR($G25=XFD$7,$I25=XFD$7,$J25=XFD$7,$K25=XFD$7,$L25=XFD$7,$M25=XFD$7,$N25=XFD$7)),$F25,IF(R25=XFD$7,$F25,"")) ->  | AA25: =IF(AND($E25="Y",OR($G25=AA$7,$I25=AA$7,$J25=AA$7,$K25=AA$7,$L25=AA$7,$M25=AA$7,$N25=AA$7)),$F25,IF(S25=AA$7,$F25,"")) ->  | AB25: =IF(AND($E25="Y",OR($G25=AB$7,$I25=AB$7,$J25=AB$7,$K25=AB$7,$L25=AB$7,$M25=AB$7,$N25=AB$7)),$F25,IF(T25=AB$7,$F25,"")) ->  | AC25: =IF(AND($E25="Y",OR($G25=AC$7,$I25=AC$7,$J25=AC$7,$K25=AC$7,$L25=AC$7,$M25=AC$7,$N25=AC$7)),$F25,IF(U25=AC$7,$F25,"")) ->  | AD25: =IF(AND($E25="Y",OR($G25=AD$7,$I25=AD$7,$J25=AD$7,$K25=AD$7,$L25=AD$7,$M25=AD$7,$N25=AD$7)),$F25,IF(V25=AD$7,$F25,"")) ->  | AE25: =IF(AND($E25="Y",OR($G25=AE$7,$I25=AE$7,$J25=AE$7,$K25=AE$7,$L25=AE$7,$M25=AE$7,$N25=AE$7)),$F25,IF(W25=AE$7,$F25,"")) ->  | AF25: =IF(AND($E25="Y",OR($G25=AF$7,$I25=AF$7,$J25=AF$7,$K25=AF$7,$L25=AF$7,$M25=AF$7,$N25=AF$7)),$F25,IF(X25=AF$7,$F25,"")) ->  | AG25: =IF(AND($E25="Y",OR($G25=AG$7,$I25=AG$7,$J25=AG$7,$K25=AG$7,$L25=AG$7,$M25=AG$7,$N25=AG$7)),$F25,IF(XFD25=AG$7,$F25,"")) ->  | AH25: =IF(AND($E25="Y",OR($G25=AH$7,$I25=AH$7,$J25=AH$7,$K25=AH$7,$L25=AH$7,$M25=AH$7,$N25=AH$7)),$F25,IF(XFD25=AH$7,$F25,"")) ->  | AI25: =IF(AND($E25="Y",OR($G25=AI$7,$I25=AI$7,$J25=AI$7,$K25=AI$7,$L25=AI$7,$M25=AI$7,$N25=AI$7)),$F25,IF(AA25=AI$7,$F25,"")) ->  | AJ25: =IF(AND($E25="Y",OR($G25=AJ$7,$I25=AJ$7,$J25=AJ$7,$K25=AJ$7,$L25=AJ$7,$M25=AJ$7,$N25=AJ$7)),$F25,IF(AB25=AJ$7,$F25,"")) ->  | AK25: =IF(AND($E25="Y",OR($G25=AK$7,$I25=AK$7,$J25=AK$7,$K25=AK$7,$L25=AK$7,$M25=AK$7,$N25=AK$7)),$F25,IF(AC25=AK$7,$F25,"")) ->  | AL25: =IF(AND($E25="Y",OR($G25=AL$7,$I25=AL$7,$J25=AL$7,$K25=AL$7,$L25=AL$7,$M25=AL$7,$N25=AL$7)),$F25,IF(AD25=AL$7,$F25,"")) ->  | AM25: =IF(AND($E25="Y",OR($G25=AM$7,$I25=AM$7,$J25=AM$7,$K25=AM$7,$L25=AM$7,$M25=AM$7,$N25=AM$7)),$F25,IF(AE25=AM$7,$F25,"")) ->  | AN25: =SUM(O25:AM25) -> 0 | AO25: =AN25/25 -> 0 | AP25: =IF(H25=0,0,F25/H25) -> 0
F26: =SUM(F8:F25) -> 320000 | G26: - | H26: - | I26: - | J26: - | K26: - | L26: - | M26: - | N26: - | O26: =SUM(O8:O25) -> 0 | P26: =SUM(P8:P25) -> 20000 | Q26: =SUM(Q8:Q25) -> 0 | R26: =SUM(R8:R25) -> 0 | S26: =SUM(S8:S25) -> 0 | T26: =SUM(T8:T25) -> 0 | U26: =SUM(U8:U25) -> 100000 | V26: =SUM(V8:V25) -> 0 | W26: =SUM(W8:W25) -> 0 | X26: =SUM(X8:X25) -> 0 | Y26: =SUM(XFD8:XFD25) -> 0 | Z26: =SUM(XFD8:XFD25) -> 0 | AA26: =SUM(AA8:AA25) -> 125000 | AB26: =SUM(AB8:AB25) -> 0 | AC26: =SUM(AC8:AC25) -> 0 | AD26: =SUM(AD8:AD25) -> 0 | AE26: =SUM(AE8:AE25) -> 0 | AF26: =SUM(AF8:AF25) -> 0 | AG26: =SUM(AG8:AG25) -> 0 | AH26: =SUM(AH8:AH25) -> 0 | AI26: =SUM(AI8:AI25) -> 0 | AJ26: =SUM(AJ8:AJ25) -> 120000 | AK26: =SUM(AK8:AK25) -> 0 | AL26: =SUM(AL8:AL25) -> 0 | AM26: =SUM(AM8:AM25) -> 0 | AN26: =SUM(AN8:AN25) -> 805000 | AO26: =SUM(AO8:AO25) -> 32200 | AP26: =SUM(AP8:AP25) -> 14166.66667
N35: 25 Year Annualized Cost | O35: =$AO$26 -> 32200 | P35: =$AO$26 -> 32200 | Q35: =$AO$26 -> 32200 | R35: =$AO$26 -> 32200 | S35: =$AO$26 -> 32200 | T35: =$AO$26 -> 32200 | U35: =$AO$26 -> 32200 | V35: =$AO$26 -> 32200 | W35: =$AO$26 -> 32200 | X35: =$AO$26 -> 32200 | Y35: =$AO$26 -> 32200 | Z35: =$AO$26 -> 32200 | AA35: =$AO$26 -> 32200 | AB35: =$AO$26 -> 32200 | AC35: =$AO$26 -> 32200 | AD35: =$AO$26 -> 32200 | AE35: =$AO$26 -> 32200 | AF35: =$AO$26 -> 32200 | AG35: =$AO$26 -> 32200 | AH35: =$AO$26 -> 32200 | AI35: =$AO$26 -> 32200 | AJ35: =$AO$26 -> 32200 | AK35: =$AO$26 -> 32200 | AL35: =$AO$26 -> 32200 | AM35: =$AO$26 -> 32200
N36: Annualized Lifecycle Cost | O36: =$AP$26 -> 14166.66667 | P36: =$AP$26 -> 14166.66667 | Q36: =$AP$26 -> 14166.66667 | R36: =$AP$26 -> 14166.66667 | S36: =$AP$26 -> 14166.66667 | T36: =$AP$26 -> 14166.66667 | U36: =$AP$26 -> 14166.66667 | V36: =$AP$26 -> 14166.66667 | W36: =$AP$26 -> 14166.66667 | X36: =$AP$26 -> 14166.66667 | Y36: =$AP$26 -> 14166.66667 | Z36: =$AP$26 -> 14166.66667 | AA36: =$AP$26 -> 14166.66667 | AB36: =$AP$26 -> 14166.66667 | AC36: =$AP$26 -> 14166.66667 | AD36: =$AP$26 -> 14166.66667 | AE36: =$AP$26 -> 14166.66667 | AF36: =$AP$26 -> 14166.66667 | AG36: =$AP$26 -> 14166.66667 | AH36: =$AP$26 -> 14166.66667 | AI36: =$AP$26 -> 14166.66667 | AJ36: =$AP$26 -> 14166.66667 | AK36: =$AP$26 -> 14166.66667 | AL36: =$AP$26 -> 14166.66667 | AM36: =$AP$26 -> 14166.66667

Sheet Lookups (hidden)
A1: Categories | B1: List Lookup | D1: Subcategories | L1: Units | M1: Selected | O1: Diameter/width/area | Q1: Length/quantity
A2: Water | B2: Water | D2: Water | E2: Sewer | F2: Roads_and_Drainage | G2: Heavy_Mobile_Equipment | H2: Buildings | I2: Recreation | J2: Vehicles | M2: D/W/A | N2: L/Q | O2: Metric | P2: Imperial | Q2: Metric | R2: Imperial
A3: Sewer | B3: Sewer | D3: =#REF! ->  | E3: =#REF! ->  | F3: =#REF! ->  | G3: =#REF! ->  | H3: =#REF! ->  | I3: =#REF! ->  | J3: =#REF! ->  | L3: =#REF! ->  | M3: =IF($L$3="Metric",O3,P3) -> in | N3: =IF($L$3="Metric",Q3,R3) -> count | O3: mm | P3: in | Q3: count | R3: count
A4: Roads and Drainage | B4: Roads_and_Drainage | D4: =#REF! ->  | E4: =#REF! ->  | F4: =#REF! ->  | G4: =#REF! ->  | H4: =#REF! ->  | I4: =#REF! ->  | J4: =#REF! ->  | M4: =IF($L$3="Metric",O4,P4) -> ft | N4: =IF($L$3="Metric",Q4,R4) -> ft | O4: m | P4: ft | Q4: m | R4: ft
A5: Heavy Mobile Equipment | B5: Heavy_Mobile_Equipment | D5: =#REF! ->  | E5: =#REF! ->  | F5: =#REF! ->  | G5: =#REF! ->  | H5: =#REF! ->  | I5: =#REF! ->  | J5: =#REF! ->  | M5: =IF($L$3="Metric",O5,P5) -> sqft | O5: m2 | P5: sqft
A6: Buildings | B6: Buildings | D6: =#REF! ->  | E6: =#REF! ->  | F6: =#REF! ->  | G6: =#REF! ->  | H6: =#REF! ->  | I6: =#REF! ->  | J6: =#REF! -> 
A7: Recreation | B7: Recreation | D7: =#REF! ->  | E7: =#REF! ->  | F7: =#REF! ->  | G7: =#REF! ->  | H7: =#REF! ->  | I7: =#REF! ->  | J7: =#REF! -> 
A8: Vehicles | B8: Vehicles | D8: =#REF! ->  | E8: =#REF! ->  | F8: =#REF! ->  | G8: =#REF! ->  | H8: =#REF! ->  | I8: =#REF! ->  | J8: =#REF! -> 
D9: =#REF! ->  | E9: =#REF! ->  | F9: =#REF! ->  | G9: =#REF! ->  | H9: =#REF! ->  | I9: =#REF! ->  | J9: =#REF! -> 
D10: =#REF! ->  | E10: =#REF! ->  | G10: =#REF! ->  | H10: =#REF! ->  | I10: =#REF! ->  | J10: =#REF! -> 
D11: =#REF! ->  | G11: =#REF! ->  | H11: =#REF! ->  | I11: =#REF! ->  | J11: =#REF! -> 
D12: =#REF! ->  | G12: =#REF! ->  | H12: =#REF! ->  | I12: =#REF! ->  | J12: =#REF! -> 
D13: =#REF! ->  | G13: =#REF! ->  | H13: =#REF! ->  | I13: =#REF! ->  | J13: =#REF! -> 
G14: =#REF! ->  | H14: =#REF! ->  | I14: =#REF! ->  | J14: =#REF! -> 
I15: =#REF! -> 
A18: =A5 -> Heavy Mobile Equipment | H18: Diameter/ Width/ Area | I18: Units | J18: Length/ Quantity | K18: Units
A19: =A8 -> Vehicles
A35: Notes:
A36: 1 This sheet powers the named ranges that allow the dropdown menus to work
A37: 2 The dropdown menus are driven from the "Current State" sheets
A38: 3 The page is password protected to prevent against accidental changes that could cause cascading errors. Please don't change this page without understanding on how named ranges, indirect functions, and data validation works.
A39: 4 Password is NWT
